{"text_format":"3","workbook":"xlsx","n_sheets":4,"sheets":["RINGKASAN ANGGARAN TERKINI","RINGKASAN PENGELUARAN BULANAN","DETAIL PENGELUARAN","AMAL & SPONSOR"],"not_rendered":{"images":1,"defined_names":15},"read":"whole","date_system":"1900"}

{"sheet":"RINGKASAN ANGGARAN TERKINI","index":0,"n_rows":16,"n_cols":7,"rows_kept":16,"merged":[[1,1,1,4]]}
[]
[null,"AKTUAL vs. ANGGARAN TERKINI",{"$nulls":3},"TAHUN",{"$f":"YEAR(TODAY())","v":2019}]
[null,"Kode Akun Buku Besar","Nama Akun","Aktual","Anggaran","Rp tersisa","% tersisa"]
[null,1000,"Iklan",{"$f":"SUMIF(RingkasanPengeluaranBulanan[Kode Akun Buku Besar],TabelTerkini[[#This Row],[Kode Akun Buku Besar]],RingkasanPengeluaranBulanan[Total])","v":{"v":0,"d":"Rp0.00"}},{"v":100000,"d":"Rp100,000.00"},{"$f":"IF(TabelTerkini[[#This Row],[Anggaran]]=\"\",\"\",TabelTerkini[[#This Row],[Anggaran]]-TabelTerkini[[#This Row],[Aktual]])","v":{"v":100000,"d":"Rp100,000.00"}},{"$f":"IFERROR(TabelTerkini[[#This Row],[Rp tersisa]]/TabelTerkini[[#This Row],[Anggaran]],\"\")","v":{"v":1,"d":"100.00%"}}]
[null,2000,"Peralatan Kantor",{"$f":"SUMIF(RingkasanPengeluaranBulanan[Kode Akun Buku Besar],TabelTerkini[[#This Row],[Kode Akun Buku Besar]],RingkasanPengeluaranBulanan[Total])","v":{"v":0,"d":"Rp0.00"}},{"v":100000,"d":"Rp100,000.00"},{"$f":"IF(TabelTerkini[[#This Row],[Anggaran]]=\"\",\"\",TabelTerkini[[#This Row],[Anggaran]]-TabelTerkini[[#This Row],[Aktual]])","v":{"v":100000,"d":"Rp100,000.00"}},{"$f":"IFERROR(TabelTerkini[[#This Row],[Rp tersisa]]/TabelTerkini[[#This Row],[Anggaran]],\"\")","v":{"v":1,"d":"100.00%"}}]
[null,3000,"Printer",{"$f":"SUMIF(RingkasanPengeluaranBulanan[Kode Akun Buku Besar],TabelTerkini[[#This Row],[Kode Akun Buku Besar]],RingkasanPengeluaranBulanan[Total])","v":{"v":0,"d":"Rp0.00"}},{"v":100000,"d":"Rp100,000.00"},{"$f":"IF(TabelTerkini[[#This Row],[Anggaran]]=\"\",\"\",TabelTerkini[[#This Row],[Anggaran]]-TabelTerkini[[#This Row],[Aktual]])","v":{"v":100000,"d":"Rp100,000.00"}},{"$f":"IFERROR(TabelTerkini[[#This Row],[Rp tersisa]]/TabelTerkini[[#This Row],[Anggaran]],\"\")","v":{"v":1,"d":"100.00%"}}]
[null,4000,"Biaya Server",{"$f":"SUMIF(RingkasanPengeluaranBulanan[Kode Akun Buku Besar],TabelTerkini[[#This Row],[Kode Akun Buku Besar]],RingkasanPengeluaranBulanan[Total])","v":{"v":0,"d":"Rp0.00"}},{"v":100000,"d":"Rp100,000.00"},{"$f":"IF(TabelTerkini[[#This Row],[Anggaran]]=\"\",\"\",TabelTerkini[[#This Row],[Anggaran]]-TabelTerkini[[#This Row],[Aktual]])","v":{"v":100000,"d":"Rp100,000.00"}},{"$f":"IFERROR(TabelTerkini[[#This Row],[Rp tersisa]]/TabelTerkini[[#This Row],[Anggaran]],\"\")","v":{"v":1,"d":"100.00%"}}]
[null,5000,"Perlengkapan",{"$f":"SUMIF(RingkasanPengeluaranBulanan[Kode Akun Buku Besar],TabelTerkini[[#This Row],[Kode Akun Buku Besar]],RingkasanPengeluaranBulanan[Total])","v":{"v":0,"d":"Rp0.00"}},{"v":50000,"d":"Rp50,000.00"},{"$f":"IF(TabelTerkini[[#This Row],[Anggaran]]=\"\",\"\",TabelTerkini[[#This Row],[Anggaran]]-TabelTerkini[[#This Row],[Aktual]])","v":{"v":50000,"d":"Rp50,000.00"}},{"$f":"IFERROR(TabelTerkini[[#This Row],[Rp tersisa]]/TabelTerkini[[#This Row],[Anggaran]],\"\")","v":{"v":1,"d":"100.00%"}}]
[null,6000,"Pengeluaran Klien",{"$f":"SUMIF(RingkasanPengeluaranBulanan[Kode Akun Buku Besar],TabelTerkini[[#This Row],[Kode Akun Buku Besar]],RingkasanPengeluaranBulanan[Total])","v":{"v":0,"d":"Rp0.00"}},{"v":25000,"d":"Rp25,000.00"},{"$f":"IF(TabelTerkini[[#This Row],[Anggaran]]=\"\",\"\",TabelTerkini[[#This Row],[Anggaran]]-TabelTerkini[[#This Row],[Aktual]])","v":{"v":25000,"d":"Rp25,000.00"}},{"$f":"IFERROR(TabelTerkini[[#This Row],[Rp tersisa]]/TabelTerkini[[#This Row],[Anggaran]],\"\")","v":{"v":1,"d":"100.00%"}}]
[null,7000,"Komputer",{"$f":"SUMIF(RingkasanPengeluaranBulanan[Kode Akun Buku Besar],TabelTerkini[[#This Row],[Kode Akun Buku Besar]],RingkasanPengeluaranBulanan[Total])","v":{"v":0,"d":"Rp0.00"}},{"v":75000,"d":"Rp75,000.00"},{"$f":"IF(TabelTerkini[[#This Row],[Anggaran]]=\"\",\"\",TabelTerkini[[#This Row],[Anggaran]]-TabelTerkini[[#This Row],[Aktual]])","v":{"v":75000,"d":"Rp75,000.00"}},{"$f":"IFERROR(TabelTerkini[[#This Row],[Rp tersisa]]/TabelTerkini[[#This Row],[Anggaran]],\"\")","v":{"v":1,"d":"100.00%"}}]
[null,8000,"Asuransi Medis",{"$f":"SUMIF(RingkasanPengeluaranBulanan[Kode Akun Buku Besar],TabelTerkini[[#This Row],[Kode Akun Buku Besar]],RingkasanPengeluaranBulanan[Total])","v":{"v":0,"d":"Rp0.00"}},{"v":65000,"d":"Rp65,000.00"},{"$f":"IF(TabelTerkini[[#This Row],[Anggaran]]=\"\",\"\",TabelTerkini[[#This Row],[Anggaran]]-TabelTerkini[[#This Row],[Aktual]])","v":{"v":65000,"d":"Rp65,000.00"}},{"$f":"IFERROR(TabelTerkini[[#This Row],[Rp tersisa]]/TabelTerkini[[#This Row],[Anggaran]],\"\")","v":{"v":1,"d":"100.00%"}}]
[null,9000,"Biaya Gedung",{"$f":"SUMIF(RingkasanPengeluaranBulanan[Kode Akun Buku Besar],TabelTerkini[[#This Row],[Kode Akun Buku Besar]],RingkasanPengeluaranBulanan[Total])","v":{"v":0,"d":"Rp0.00"}},{"v":125000,"d":"Rp125,000.00"},{"$f":"IF(TabelTerkini[[#This Row],[Anggaran]]=\"\",\"\",TabelTerkini[[#This Row],[Anggaran]]-TabelTerkini[[#This Row],[Aktual]])","v":{"v":125000,"d":"Rp125,000.00"}},{"$f":"IFERROR(TabelTerkini[[#This Row],[Rp tersisa]]/TabelTerkini[[#This Row],[Anggaran]],\"\")","v":{"v":1,"d":"100.00%"}}]
[null,10000,"Pemasaran",{"$f":"SUMIF(RingkasanPengeluaranBulanan[Kode Akun Buku Besar],TabelTerkini[[#This Row],[Kode Akun Buku Besar]],RingkasanPengeluaranBulanan[Total])","v":{"v":0,"d":"Rp0.00"}},{"v":100000,"d":"Rp100,000.00"},{"$f":"IF(TabelTerkini[[#This Row],[Anggaran]]=\"\",\"\",TabelTerkini[[#This Row],[Anggaran]]-TabelTerkini[[#This Row],[Aktual]])","v":{"v":100000,"d":"Rp100,000.00"}},{"$f":"IFERROR(TabelTerkini[[#This Row],[Rp tersisa]]/TabelTerkini[[#This Row],[Anggaran]],\"\")","v":{"v":1,"d":"100.00%"}}]
[null,11000,"Amal",{"$f":"SUMIF(RingkasanPengeluaranBulanan[Kode Akun Buku Besar],TabelTerkini[[#This Row],[Kode Akun Buku Besar]],RingkasanPengeluaranBulanan[Total])","v":{"v":0,"d":"Rp0.00"}},{"v":250000,"d":"Rp250,000.00"},{"$f":"IF(TabelTerkini[[#This Row],[Anggaran]]=\"\",\"\",TabelTerkini[[#This Row],[Anggaran]]-TabelTerkini[[#This Row],[Aktual]])","v":{"v":250000,"d":"Rp250,000.00"}},{"$f":"IFERROR(TabelTerkini[[#This Row],[Rp tersisa]]/TabelTerkini[[#This Row],[Anggaran]],\"\")","v":{"v":1,"d":"100.00%"}}]
[null,12000,"Sponsor",{"$f":"SUMIF(RingkasanPengeluaranBulanan[Kode Akun Buku Besar],TabelTerkini[[#This Row],[Kode Akun Buku Besar]],RingkasanPengeluaranBulanan[Total])","v":{"v":0,"d":"Rp0.00"}},{"v":50000,"d":"Rp50,000.00"},{"$f":"IF(TabelTerkini[[#This Row],[Anggaran]]=\"\",\"\",TabelTerkini[[#This Row],[Anggaran]]-TabelTerkini[[#This Row],[Aktual]])","v":{"v":50000,"d":"Rp50,000.00"}},{"$f":"IFERROR(TabelTerkini[[#This Row],[Rp tersisa]]/TabelTerkini[[#This Row],[Anggaran]],\"\")","v":{"v":1,"d":"100.00%"}}]
[null,"Total",null,{"$f":"SUBTOTAL(109,TabelTerkini[Aktual])","v":{"v":0,"d":"Rp0.00"}},{"$f":"SUBTOTAL(109,TabelTerkini[Anggaran])","v":{"v":1140000,"d":"Rp1,140,000.00"}},{"$f":"SUBTOTAL(109,TabelTerkini[Rp tersisa])","v":{"v":1140000,"d":"Rp1,140,000.00"}},{"$f":"TabelTerkini[[#Totals],[Rp tersisa]]/TabelTerkini[[#Totals],[Anggaran]]","v":{"v":1,"d":"100.00%"}}]

{"sheet":"RINGKASAN PENGELUARAN BULANAN","index":1,"n_rows":18,"n_cols":17,"rows_kept":18,"merged":[[1,1,1,16]]}
[]
[null,"RINGKASAN PENGELUARAN BULANAN"]
[null,"Pemotong untuk memfilter data menurut Nama Akun ada di sel ini.",null,{"$f":"DATEVALUE(\"1-JAN\"&_TAHUN)","v":{"v":43466,"d":"4346600.00%"}},{"$f":"DATEVALUE(\"1-FEB\"&_TAHUN)","v":{"v":43497,"d":"4349700.00%"}},{"$f":"DATEVALUE(\"1-MAR\"&_TAHUN)","v":{"v":43525,"d":"4352500.00%"}},{"$f":"DATEVALUE(\"1-APR\"&_TAHUN)","v":{"v":43556,"d":"4355600.00%"}},{"$f":"DATEVALUE(\"1-MEI\"&_TAHUN)","v":{"v":43586,"d":"4358600.00%"}},{"$f":"DATEVALUE(\"1-JUN\"&_TAHUN)","v":{"v":43617,"d":"4361700.00%"}},{"$f":"DATEVALUE(\"1-JUL\"&_TAHUN)","v":{"v":43647,"d":"4364700.00%"}},{"$f":"DATEVALUE(\"1-AGU\"&_TAHUN)","v":{"v":43678,"d":"4367800.00%"}},{"$f":"DATEVALUE(\"1-SEP\"&_TAHUN)","v":{"v":43709,"d":"4370900.00%"}},{"$f":"DATEVALUE(\"1-OKT\"&_TAHUN)","v":{"v":43739,"d":"4373900.00%"}},{"$f":"DATEVALUE(\"1-NOV\"&_TAHUN)","v":{"v":43770,"d":"4377000.00%"}},{"$f":"DATEVALUE(\"1-DES\"&_TAHUN)","v":{"v":43800,"d":"4380000.00%"}}]
[{"$nulls":3},{"$f":"EOMONTH(D3,0)","v":{"v":43496,"d":"4349600.00%"}},{"$f":"EOMONTH(E3,0)","v":{"v":43524,"d":"4352400.00%"}},{"$f":"EOMONTH(F3,0)","v":{"v":43555,"d":"4355500.00%"}},{"$f":"EOMONTH(G3,0)","v":{"v":43585,"d":"4358500.00%"}},{"$f":"EOMONTH(H3,0)","v":{"v":43616,"d":"4361600.00%"}},{"$f":"EOMONTH(I3,0)","v":{"v":43646,"d":"4364600.00%"}},{"v":43677,"d":"4367700.00%"},{"v":43708,"d":"4370800.00%"},{"v":43738,"d":"4373800.00%"},{"v":43769,"d":"4376900.00%"},{"v":43799,"d":"4379900.00%"},{"v":43830,"d":"4383000.00%"}]
[null,"Kode Akun Buku Besar","Nama Akun","Januari","Februari","Maret","April","Mei","Juni","Juli","Agustus","September","Oktober","November","Desember","Total"," "]
[null,1000,"Iklan",{"$f":"SUMIFS(DetailPengeluaran[Jumlah Cek],DetailPengeluaran[Kode Akun Buku Besar],RingkasanPengeluaranBulanan[[#This Row],[Kode Akun Buku Besar]],DetailPengeluaran[Tanggal Faktur],\">=\"&D$3,DetailPengeluaran[Tanggal Faktur],\"<=\"&D$4)+SUMIFS(Lainnya[Jumlah Cek],Lainnya[Kode Akun Buku Besar],RingkasanPengeluaranBulanan[[#This Row],[Kode Akun Buku Besar]],Lainnya[Tanggal Pengajuan Permintaan Cek],\">=\"&DATEVALUE(\" 1 \"&RingkasanPengeluaranBulanan[[#Headers],[Januari]]&_TAHUN),Lainnya[Tanggal Pengajuan Permintaan Cek],\"<=\"&D$4)","v":{"v":0,"d":"Rp0.00"}},{"$f":"SUMIFS(DetailPengeluaran[Jumlah Cek],DetailPengeluaran[Kode Akun Buku Besar],RingkasanPengeluaranBulanan[[#This Row],[Kode Akun Buku Besar]],DetailPengeluaran[Tanggal Faktur],\">=\"&E$3,DetailPengeluaran[Tanggal Faktur],\"<=\"&E$4)+SUMIFS(Lainnya[Jumlah Cek],Lainnya[Kode Akun Buku Besar],RingkasanPengeluaranBulanan[[#This Row],[Kode Akun Buku Besar]],Lainnya[Tanggal Pengajuan Permintaan Cek],\">=\"&DATEVALUE(\" 1 \"&RingkasanPengeluaranBulanan[[#Headers],[Februari]]&_TAHUN),Lainnya[Tanggal Pengajuan Permintaan Cek],\"<=\"&E$4)","v":{"v":0,"d":"Rp0.00"}},{"$f":"SUMIFS(DetailPengeluaran[Jumlah Cek],DetailPengeluaran[Kode Akun Buku Besar],RingkasanPengeluaranBulanan[[#This Row],[Kode Akun Buku Besar]],DetailPengeluaran[Tanggal Faktur],\">=\"&F$3,DetailPengeluaran[Tanggal Faktur],\"<=\"&F$4)+SUMIFS(Lainnya[Jumlah Cek],Lainnya[Kode Akun Buku Besar],RingkasanPengeluaranBulanan[[#This Row],[Kode Akun Buku Besar]],Lainnya[Tanggal Pengajuan Permintaan Cek],\">=\"&DATEVALUE(\" 1 \"&RingkasanPengeluaranBulanan[[#Headers],[Maret]]&_TAHUN),Lainnya[Tanggal Pengajuan Permintaan Cek],\"<=\"&F$4)","v":{"v":0,"d":"Rp0.00"}},{"$f":"SUMIFS(DetailPengeluaran[Jumlah Cek],DetailPengeluaran[Kode Akun Buku Besar],RingkasanPengeluaranBulanan[[#This Row],[Kode Akun Buku Besar]],DetailPengeluaran[Tanggal Faktur],\">=\"&G$3,DetailPengeluaran[Tanggal Faktur],\"<=\"&G$4)+SUMIFS(Lainnya[Jumlah Cek],Lainnya[Kode Akun Buku Besar],RingkasanPengeluaranBulanan[[#This Row],[Kode Akun Buku Besar]],Lainnya[Tanggal Pengajuan Permintaan Cek],\">=\"&DATEVALUE(\" 1 \"&RingkasanPengeluaranBulanan[[#Headers],[April]]&_TAHUN),Lainnya[Tanggal Pengajuan Permintaan Cek],\"<=\"&G$4)","v":{"v":0,"d":"Rp0.00"}},{"$f":"SUMIFS(DetailPengeluaran[Jumlah Cek],DetailPengeluaran[Kode Akun Buku Besar],RingkasanPengeluaranBulanan[[#This Row],[Kode Akun Buku Besar]],DetailPengeluaran[Tanggal Faktur],\">=\"&H$3,DetailPengeluaran[Tanggal Faktur],\"<=\"&H$4)+SUMIFS(Lainnya[Jumlah Cek],Lainnya[Kode Akun Buku Besar],RingkasanPengeluaranBulanan[[#This Row],[Kode Akun Buku Besar]],Lainnya[Tanggal Pengajuan Permintaan Cek],\">=\"&DATEVALUE(\" 1 \"&RingkasanPengeluaranBulanan[[#Headers],[Mei]]&_TAHUN),Lainnya[Tanggal Pengajuan Permintaan Cek],\"<=\"&H$4)","v":{"v":0,"d":"Rp0.00"}},{"$f":"SUMIFS(DetailPengeluaran[Jumlah Cek],DetailPengeluaran[Kode Akun Buku Besar],RingkasanPengeluaranBulanan[[#This Row],[Kode Akun Buku Besar]],DetailPengeluaran[Tanggal Faktur],\">=\"&I$3,DetailPengeluaran[Tanggal Faktur],\"<=\"&I$4)+SUMIFS(Lainnya[Jumlah Cek],Lainnya[Kode Akun Buku Besar],RingkasanPengeluaranBulanan[[#This Row],[Kode Akun Buku Besar]],Lainnya[Tanggal Pengajuan Permintaan Cek],\">=\"&DATEVALUE(\" 1 \"&RingkasanPengeluaranBulanan[[#Headers],[Juni]]&_TAHUN),Lainnya[Tanggal Pengajuan Permintaan Cek],\"<=\"&I$4)","v":{"v":0,"d":"Rp0.00"}},{"$f":"SUMIFS(DetailPengeluaran[Jumlah Cek],DetailPengeluaran[Kode Akun Buku Besar],RingkasanPengeluaranBulanan[[#This Row],[Kode Akun Buku Besar]],DetailPengeluaran[Tanggal Faktur],\">=\"&J$3,DetailPengeluaran[Tanggal Faktur],\"<=\"&J$4)+SUMIFS(Lainnya[Jumlah Cek],Lainnya[Kode Akun Buku Besar],RingkasanPengeluaranBulanan[[#This Row],[Kode Akun Buku Besar]],Lainnya[Tanggal Pengajuan Permintaan Cek],\">=\"&DATEVALUE(\" 1 \"&RingkasanPengeluaranBulanan[[#Headers],[Juli]]&_TAHUN),Lainnya[Tanggal Pengajuan Permintaan Cek],\"<=\"&J$4)","v":{"v":0,"d":"Rp0.00"}},{"$f":"SUMIFS(DetailPengeluaran[Jumlah Cek],DetailPengeluaran[Kode Akun Buku Besar],RingkasanPengeluaranBulanan[[#This Row],[Kode Akun Buku Besar]],DetailPengeluaran[Tanggal Faktur],\">=\"&K$3,DetailPengeluaran[Tanggal Faktur],\"<=\"&K$4)+SUMIFS(Lainnya[Jumlah Cek],Lainnya[Kode Akun Buku Besar],RingkasanPengeluaranBulanan[[#This Row],[Kode Akun Buku Besar]],Lainnya[Tanggal Pengajuan Permintaan Cek],\">=\"&DATEVALUE(\" 1 \"&RingkasanPengeluaranBulanan[[#Headers],[Agustus]]&_TAHUN),Lainnya[Tanggal Pengajuan Permintaan Cek],\"<=\"&K$4)","v":{"v":0,"d":"Rp0.00"}},{"$f":"SUMIFS(DetailPengeluaran[Jumlah Cek],DetailPengeluaran[Kode Akun Buku Besar],RingkasanPengeluaranBulanan[[#This Row],[Kode Akun Buku Besar]],DetailPengeluaran[Tanggal Faktur],\">=\"&L$3,DetailPengeluaran[Tanggal Faktur],\"<=\"&L$4)+SUMIFS(Lainnya[Jumlah Cek],Lainnya[Kode Akun Buku Besar],RingkasanPengeluaranBulanan[[#This Row],[Kode Akun Buku Besar]],Lainnya[Tanggal Pengajuan Permintaan Cek],\">=\"&DATEVALUE(\" 1 \"&RingkasanPengeluaranBulanan[[#Headers],[September]]&_TAHUN),Lainnya[Tanggal Pengajuan Permintaan Cek],\"<=\"&L$4)","v":{"v":0,"d":"Rp0.00"}},{"$f":"SUMIFS(DetailPengeluaran[Jumlah Cek],DetailPengeluaran[Kode Akun Buku Besar],RingkasanPengeluaranBulanan[[#This Row],[Kode Akun Buku Besar]],DetailPengeluaran[Tanggal Faktur],\">=\"&M$3,DetailPengeluaran[Tanggal Faktur],\"<=\"&M$4)+SUMIFS(Lainnya[Jumlah Cek],Lainnya[Kode Akun Buku Besar],RingkasanPengeluaranBulanan[[#This Row],[Kode Akun Buku Besar]],Lainnya[Tanggal Pengajuan Permintaan Cek],\">=\"&DATEVALUE(\" 1 \"&RingkasanPengeluaranBulanan[[#Headers],[Oktober]]&_TAHUN),Lainnya[Tanggal Pengajuan Permintaan Cek],\"<=\"&M$4)","v":{"v":0,"d":"Rp0.00"}},{"$f":"SUMIFS(DetailPengeluaran[Jumlah Cek],DetailPengeluaran[Kode Akun Buku Besar],RingkasanPengeluaranBulanan[[#This Row],[Kode Akun Buku Besar]],DetailPengeluaran[Tanggal Faktur],\">=\"&N$3,DetailPengeluaran[Tanggal Faktur],\"<=\"&N$4)+SUMIFS(Lainnya[Jumlah Cek],Lainnya[Kode Akun Buku Besar],RingkasanPengeluaranBulanan[[#This Row],[Kode Akun Buku Besar]],Lainnya[Tanggal Pengajuan Permintaan Cek],\">=\"&DATEVALUE(\" 1 \"&RingkasanPengeluaranBulanan[[#Headers],[November]]&_TAHUN),Lainnya[Tanggal Pengajuan Permintaan Cek],\"<=\"&N$4)","v":{"v":0,"d":"Rp0.00"}},{"$f":"SUMIFS(DetailPengeluaran[Jumlah Cek],DetailPengeluaran[Kode Akun Buku Besar],RingkasanPengeluaranBulanan[[#This Row],[Kode Akun Buku Besar]],DetailPengeluaran[Tanggal Faktur],\">=\"&O$3,DetailPengeluaran[Tanggal Faktur],\"<=\"&O$4)+SUMIFS(Lainnya[Jumlah Cek],Lainnya[Kode Akun Buku Besar],RingkasanPengeluaranBulanan[[#This Row],[Kode Akun Buku Besar]],Lainnya[Tanggal Pengajuan Permintaan Cek],\">=\"&DATEVALUE(\" 1 \"&RingkasanPengeluaranBulanan[[#Headers],[Desember]]&_TAHUN),Lainnya[Tanggal Pengajuan Permintaan Cek],\"<=\"&O$4)","v":{"v":0,"d":"Rp0.00"}},{"$f":"SUM(RingkasanPengeluaranBulanan[[#This Row],[Januari]:[Desember]])","v":{"v":0,"d":"Rp0.00"}}]
[null,2000,"Peralatan Kantor",{"$f":"SUMIFS(DetailPengeluaran[Jumlah Cek],DetailPengeluaran[Kode Akun Buku Besar],RingkasanPengeluaranBulanan[[#This Row],[Kode Akun Buku Besar]],DetailPengeluaran[Tanggal Faktur],\">=\"&D$3,DetailPengeluaran[Tanggal Faktur],\"<=\"&D$4)+SUMIFS(Lainnya[Jumlah Cek],Lainnya[Kode Akun Buku Besar],RingkasanPengeluaranBulanan[[#This Row],[Kode Akun Buku Besar]],Lainnya[Tanggal Pengajuan Permintaan Cek],\">=\"&DATEVALUE(\" 1 \"&RingkasanPengeluaranBulanan[[#Headers],[Januari]]&_TAHUN),Lainnya[Tanggal Pengajuan Permintaan Cek],\"<=\"&D$4)","v":{"v":0,"d":"Rp0.00"}},{"$f":"SUMIFS(DetailPengeluaran[Jumlah Cek],DetailPengeluaran[Kode Akun Buku Besar],RingkasanPengeluaranBulanan[[#This Row],[Kode Akun Buku Besar]],DetailPengeluaran[Tanggal Faktur],\">=\"&E$3,DetailPengeluaran[Tanggal Faktur],\"<=\"&E$4)+SUMIFS(Lainnya[Jumlah Cek],Lainnya[Kode Akun Buku Besar],RingkasanPengeluaranBulanan[[#This Row],[Kode Akun Buku Besar]],Lainnya[Tanggal Pengajuan Permintaan Cek],\">=\"&DATEVALUE(\" 1 \"&RingkasanPengeluaranBulanan[[#Headers],[Februari]]&_TAHUN),Lainnya[Tanggal Pengajuan Permintaan Cek],\"<=\"&E$4)","v":{"v":0,"d":"Rp0.00"}},{"$f":"SUMIFS(DetailPengeluaran[Jumlah Cek],DetailPengeluaran[Kode Akun Buku Besar],RingkasanPengeluaranBulanan[[#This Row],[Kode Akun Buku Besar]],DetailPengeluaran[Tanggal Faktur],\">=\"&F$3,DetailPengeluaran[Tanggal Faktur],\"<=\"&F$4)+SUMIFS(Lainnya[Jumlah Cek],Lainnya[Kode Akun Buku Besar],RingkasanPengeluaranBulanan[[#This Row],[Kode Akun Buku Besar]],Lainnya[Tanggal Pengajuan Permintaan Cek],\">=\"&DATEVALUE(\" 1 \"&RingkasanPengeluaranBulanan[[#Headers],[Maret]]&_TAHUN),Lainnya[Tanggal Pengajuan Permintaan Cek],\"<=\"&F$4)","v":{"v":0,"d":"Rp0.00"}},{"$f":"SUMIFS(DetailPengeluaran[Jumlah Cek],DetailPengeluaran[Kode Akun Buku Besar],RingkasanPengeluaranBulanan[[#This Row],[Kode Akun Buku Besar]],DetailPengeluaran[Tanggal Faktur],\">=\"&G$3,DetailPengeluaran[Tanggal Faktur],\"<=\"&G$4)+SUMIFS(Lainnya[Jumlah Cek],Lainnya[Kode Akun Buku Besar],RingkasanPengeluaranBulanan[[#This Row],[Kode Akun Buku Besar]],Lainnya[Tanggal Pengajuan Permintaan Cek],\">=\"&DATEVALUE(\" 1 \"&RingkasanPengeluaranBulanan[[#Headers],[April]]&_TAHUN),Lainnya[Tanggal Pengajuan Permintaan Cek],\"<=\"&G$4)","v":{"v":0,"d":"Rp0.00"}},{"$f":"SUMIFS(DetailPengeluaran[Jumlah Cek],DetailPengeluaran[Kode Akun Buku Besar],RingkasanPengeluaranBulanan[[#This Row],[Kode Akun Buku Besar]],DetailPengeluaran[Tanggal Faktur],\">=\"&H$3,DetailPengeluaran[Tanggal Faktur],\"<=\"&H$4)+SUMIFS(Lainnya[Jumlah Cek],Lainnya[Kode Akun Buku Besar],RingkasanPengeluaranBulanan[[#This Row],[Kode Akun Buku Besar]],Lainnya[Tanggal Pengajuan Permintaan Cek],\">=\"&DATEVALUE(\" 1 \"&RingkasanPengeluaranBulanan[[#Headers],[Mei]]&_TAHUN),Lainnya[Tanggal Pengajuan Permintaan Cek],\"<=\"&H$4)","v":{"v":0,"d":"Rp0.00"}},{"$f":"SUMIFS(DetailPengeluaran[Jumlah Cek],DetailPengeluaran[Kode Akun Buku Besar],RingkasanPengeluaranBulanan[[#This Row],[Kode Akun Buku Besar]],DetailPengeluaran[Tanggal Faktur],\">=\"&I$3,DetailPengeluaran[Tanggal Faktur],\"<=\"&I$4)+SUMIFS(Lainnya[Jumlah Cek],Lainnya[Kode Akun Buku Besar],RingkasanPengeluaranBulanan[[#This Row],[Kode Akun Buku Besar]],Lainnya[Tanggal Pengajuan Permintaan Cek],\">=\"&DATEVALUE(\" 1 \"&RingkasanPengeluaranBulanan[[#Headers],[Juni]]&_TAHUN),Lainnya[Tanggal Pengajuan Permintaan Cek],\"<=\"&I$4)","v":{"v":0,"d":"Rp0.00"}},{"$f":"SUMIFS(DetailPengeluaran[Jumlah Cek],DetailPengeluaran[Kode Akun Buku Besar],RingkasanPengeluaranBulanan[[#This Row],[Kode Akun Buku Besar]],DetailPengeluaran[Tanggal Faktur],\">=\"&J$3,DetailPengeluaran[Tanggal Faktur],\"<=\"&J$4)+SUMIFS(Lainnya[Jumlah Cek],Lainnya[Kode Akun Buku Besar],RingkasanPengeluaranBulanan[[#This Row],[Kode Akun Buku Besar]],Lainnya[Tanggal Pengajuan Permintaan Cek],\">=\"&DATEVALUE(\" 1 \"&RingkasanPengeluaranBulanan[[#Headers],[Juli]]&_TAHUN),Lainnya[Tanggal Pengajuan Permintaan Cek],\"<=\"&J$4)","v":{"v":0,"d":"Rp0.00"}},{"$f":"SUMIFS(DetailPengeluaran[Jumlah Cek],DetailPengeluaran[Kode Akun Buku Besar],RingkasanPengeluaranBulanan[[#This Row],[Kode Akun Buku Besar]],DetailPengeluaran[Tanggal Faktur],\">=\"&K$3,DetailPengeluaran[Tanggal Faktur],\"<=\"&K$4)+SUMIFS(Lainnya[Jumlah Cek],Lainnya[Kode Akun Buku Besar],RingkasanPengeluaranBulanan[[#This Row],[Kode Akun Buku Besar]],Lainnya[Tanggal Pengajuan Permintaan Cek],\">=\"&DATEVALUE(\" 1 \"&RingkasanPengeluaranBulanan[[#Headers],[Agustus]]&_TAHUN),Lainnya[Tanggal Pengajuan Permintaan Cek],\"<=\"&K$4)","v":{"v":0,"d":"Rp0.00"}},{"$f":"SUMIFS(DetailPengeluaran[Jumlah Cek],DetailPengeluaran[Kode Akun Buku Besar],RingkasanPengeluaranBulanan[[#This Row],[Kode Akun Buku Besar]],DetailPengeluaran[Tanggal Faktur],\">=\"&L$3,DetailPengeluaran[Tanggal Faktur],\"<=\"&L$4)+SUMIFS(Lainnya[Jumlah Cek],Lainnya[Kode Akun Buku Besar],RingkasanPengeluaranBulanan[[#This Row],[Kode Akun Buku Besar]],Lainnya[Tanggal Pengajuan Permintaan Cek],\">=\"&DATEVALUE(\" 1 \"&RingkasanPengeluaranBulanan[[#Headers],[September]]&_TAHUN),Lainnya[Tanggal Pengajuan Permintaan Cek],\"<=\"&L$4)","v":{"v":0,"d":"Rp0.00"}},{"$f":"SUMIFS(DetailPengeluaran[Jumlah Cek],DetailPengeluaran[Kode Akun Buku Besar],RingkasanPengeluaranBulanan[[#This Row],[Kode Akun Buku Besar]],DetailPengeluaran[Tanggal Faktur],\">=\"&M$3,DetailPengeluaran[Tanggal Faktur],\"<=\"&M$4)+SUMIFS(Lainnya[Jumlah Cek],Lainnya[Kode Akun Buku Besar],RingkasanPengeluaranBulanan[[#This Row],[Kode Akun Buku Besar]],Lainnya[Tanggal Pengajuan Permintaan Cek],\">=\"&DATEVALUE(\" 1 \"&RingkasanPengeluaranBulanan[[#Headers],[Oktober]]&_TAHUN),Lainnya[Tanggal Pengajuan Permintaan Cek],\"<=\"&M$4)","v":{"v":0,"d":"Rp0.00"}},{"$f":"SUMIFS(DetailPengeluaran[Jumlah Cek],DetailPengeluaran[Kode Akun Buku Besar],RingkasanPengeluaranBulanan[[#This Row],[Kode Akun Buku Besar]],DetailPengeluaran[Tanggal Faktur],\">=\"&N$3,DetailPengeluaran[Tanggal Faktur],\"<=\"&N$4)+SUMIFS(Lainnya[Jumlah Cek],Lainnya[Kode Akun Buku Besar],RingkasanPengeluaranBulanan[[#This Row],[Kode Akun Buku Besar]],Lainnya[Tanggal Pengajuan Permintaan Cek],\">=\"&DATEVALUE(\" 1 \"&RingkasanPengeluaranBulanan[[#Headers],[November]]&_TAHUN),Lainnya[Tanggal Pengajuan Permintaan Cek],\"<=\"&N$4)","v":{"v":0,"d":"Rp0.00"}},{"$f":"SUMIFS(DetailPengeluaran[Jumlah Cek],DetailPengeluaran[Kode Akun Buku Besar],RingkasanPengeluaranBulanan[[#This Row],[Kode Akun Buku Besar]],DetailPengeluaran[Tanggal Faktur],\">=\"&O$3,DetailPengeluaran[Tanggal Faktur],\"<=\"&O$4)+SUMIFS(Lainnya[Jumlah Cek],Lainnya[Kode Akun Buku Besar],RingkasanPengeluaranBulanan[[#This Row],[Kode Akun Buku Besar]],Lainnya[Tanggal Pengajuan Permintaan Cek],\">=\"&DATEVALUE(\" 1 \"&RingkasanPengeluaranBulanan[[#Headers],[Desember]]&_TAHUN),Lainnya[Tanggal Pengajuan Permintaan Cek],\"<=\"&O$4)","v":{"v":0,"d":"Rp0.00"}},{"$f":"SUM(RingkasanPengeluaranBulanan[[#This Row],[Januari]:[Desember]])","v":{"v":0,"d":"Rp0.00"}}]
[null,3000,"Printer",{"$f":"SUMIFS(DetailPengeluaran[Jumlah Cek],DetailPengeluaran[Kode Akun Buku Besar],RingkasanPengeluaranBulanan[[#This Row],[Kode Akun Buku Besar]],DetailPengeluaran[Tanggal Faktur],\">=\"&D$3,DetailPengeluaran[Tanggal Faktur],\"<=\"&D$4)+SUMIFS(Lainnya[Jumlah Cek],Lainnya[Kode Akun Buku Besar],RingkasanPengeluaranBulanan[[#This Row],[Kode Akun Buku Besar]],Lainnya[Tanggal Pengajuan Permintaan Cek],\">=\"&DATEVALUE(\" 1 \"&RingkasanPengeluaranBulanan[[#Headers],[Januari]]&_TAHUN),Lainnya[Tanggal Pengajuan Permintaan Cek],\"<=\"&D$4)","v":{"v":0,"d":"Rp0.00"}},{"$f":"SUMIFS(DetailPengeluaran[Jumlah Cek],DetailPengeluaran[Kode Akun Buku Besar],RingkasanPengeluaranBulanan[[#This Row],[Kode Akun Buku Besar]],DetailPengeluaran[Tanggal Faktur],\">=\"&E$3,DetailPengeluaran[Tanggal Faktur],\"<=\"&E$4)+SUMIFS(Lainnya[Jumlah Cek],Lainnya[Kode Akun Buku Besar],RingkasanPengeluaranBulanan[[#This Row],[Kode Akun Buku Besar]],Lainnya[Tanggal Pengajuan Permintaan Cek],\">=\"&DATEVALUE(\" 1 \"&RingkasanPengeluaranBulanan[[#Headers],[Februari]]&_TAHUN),Lainnya[Tanggal Pengajuan Permintaan Cek],\"<=\"&E$4)","v":{"v":0,"d":"Rp0.00"}},{"$f":"SUMIFS(DetailPengeluaran[Jumlah Cek],DetailPengeluaran[Kode Akun Buku Besar],RingkasanPengeluaranBulanan[[#This Row],[Kode Akun Buku Besar]],DetailPengeluaran[Tanggal Faktur],\">=\"&F$3,DetailPengeluaran[Tanggal Faktur],\"<=\"&F$4)+SUMIFS(Lainnya[Jumlah Cek],Lainnya[Kode Akun Buku Besar],RingkasanPengeluaranBulanan[[#This Row],[Kode Akun Buku Besar]],Lainnya[Tanggal Pengajuan Permintaan Cek],\">=\"&DATEVALUE(\" 1 \"&RingkasanPengeluaranBulanan[[#Headers],[Maret]]&_TAHUN),Lainnya[Tanggal Pengajuan Permintaan Cek],\"<=\"&F$4)","v":{"v":0,"d":"Rp0.00"}},{"$f":"SUMIFS(DetailPengeluaran[Jumlah Cek],DetailPengeluaran[Kode Akun Buku Besar],RingkasanPengeluaranBulanan[[#This Row],[Kode Akun Buku Besar]],DetailPengeluaran[Tanggal Faktur],\">=\"&G$3,DetailPengeluaran[Tanggal Faktur],\"<=\"&G$4)+SUMIFS(Lainnya[Jumlah Cek],Lainnya[Kode Akun Buku Besar],RingkasanPengeluaranBulanan[[#This Row],[Kode Akun Buku Besar]],Lainnya[Tanggal Pengajuan Permintaan Cek],\">=\"&DATEVALUE(\" 1 \"&RingkasanPengeluaranBulanan[[#Headers],[April]]&_TAHUN),Lainnya[Tanggal Pengajuan Permintaan Cek],\"<=\"&G$4)","v":{"v":0,"d":"Rp0.00"}},{"$f":"SUMIFS(DetailPengeluaran[Jumlah Cek],DetailPengeluaran[Kode Akun Buku Besar],RingkasanPengeluaranBulanan[[#This Row],[Kode Akun Buku Besar]],DetailPengeluaran[Tanggal Faktur],\">=\"&H$3,DetailPengeluaran[Tanggal Faktur],\"<=\"&H$4)+SUMIFS(Lainnya[Jumlah Cek],Lainnya[Kode Akun Buku Besar],RingkasanPengeluaranBulanan[[#This Row],[Kode Akun Buku Besar]],Lainnya[Tanggal Pengajuan Permintaan Cek],\">=\"&DATEVALUE(\" 1 \"&RingkasanPengeluaranBulanan[[#Headers],[Mei]]&_TAHUN),Lainnya[Tanggal Pengajuan Permintaan Cek],\"<=\"&H$4)","v":{"v":0,"d":"Rp0.00"}},{"$f":"SUMIFS(DetailPengeluaran[Jumlah Cek],DetailPengeluaran[Kode Akun Buku Besar],RingkasanPengeluaranBulanan[[#This Row],[Kode Akun Buku Besar]],DetailPengeluaran[Tanggal Faktur],\">=\"&I$3,DetailPengeluaran[Tanggal Faktur],\"<=\"&I$4)+SUMIFS(Lainnya[Jumlah Cek],Lainnya[Kode Akun Buku Besar],RingkasanPengeluaranBulanan[[#This Row],[Kode Akun Buku Besar]],Lainnya[Tanggal Pengajuan Permintaan Cek],\">=\"&DATEVALUE(\" 1 \"&RingkasanPengeluaranBulanan[[#Headers],[Juni]]&_TAHUN),Lainnya[Tanggal Pengajuan Permintaan Cek],\"<=\"&I$4)","v":{"v":0,"d":"Rp0.00"}},{"$f":"SUMIFS(DetailPengeluaran[Jumlah Cek],DetailPengeluaran[Kode Akun Buku Besar],RingkasanPengeluaranBulanan[[#This Row],[Kode Akun Buku Besar]],DetailPengeluaran[Tanggal Faktur],\">=\"&J$3,DetailPengeluaran[Tanggal Faktur],\"<=\"&J$4)+SUMIFS(Lainnya[Jumlah Cek],Lainnya[Kode Akun Buku Besar],RingkasanPengeluaranBulanan[[#This Row],[Kode Akun Buku Besar]],Lainnya[Tanggal Pengajuan Permintaan Cek],\">=\"&DATEVALUE(\" 1 \"&RingkasanPengeluaranBulanan[[#Headers],[Juli]]&_TAHUN),Lainnya[Tanggal Pengajuan Permintaan Cek],\"<=\"&J$4)","v":{"v":0,"d":"Rp0.00"}},{"$f":"SUMIFS(DetailPengeluaran[Jumlah Cek],DetailPengeluaran[Kode Akun Buku Besar],RingkasanPengeluaranBulanan[[#This Row],[Kode Akun Buku Besar]],DetailPengeluaran[Tanggal Faktur],\">=\"&K$3,DetailPengeluaran[Tanggal Faktur],\"<=\"&K$4)+SUMIFS(Lainnya[Jumlah Cek],Lainnya[Kode Akun Buku Besar],RingkasanPengeluaranBulanan[[#This Row],[Kode Akun Buku Besar]],Lainnya[Tanggal Pengajuan Permintaan Cek],\">=\"&DATEVALUE(\" 1 \"&RingkasanPengeluaranBulanan[[#Headers],[Agustus]]&_TAHUN),Lainnya[Tanggal Pengajuan Permintaan Cek],\"<=\"&K$4)","v":{"v":0,"d":"Rp0.00"}},{"$f":"SUMIFS(DetailPengeluaran[Jumlah Cek],DetailPengeluaran[Kode Akun Buku Besar],RingkasanPengeluaranBulanan[[#This Row],[Kode Akun Buku Besar]],DetailPengeluaran[Tanggal Faktur],\">=\"&L$3,DetailPengeluaran[Tanggal Faktur],\"<=\"&L$4)+SUMIFS(Lainnya[Jumlah Cek],Lainnya[Kode Akun Buku Besar],RingkasanPengeluaranBulanan[[#This Row],[Kode Akun Buku Besar]],Lainnya[Tanggal Pengajuan Permintaan Cek],\">=\"&DATEVALUE(\" 1 \"&RingkasanPengeluaranBulanan[[#Headers],[September]]&_TAHUN),Lainnya[Tanggal Pengajuan Permintaan Cek],\"<=\"&L$4)","v":{"v":0,"d":"Rp0.00"}},{"$f":"SUMIFS(DetailPengeluaran[Jumlah Cek],DetailPengeluaran[Kode Akun Buku Besar],RingkasanPengeluaranBulanan[[#This Row],[Kode Akun Buku Besar]],DetailPengeluaran[Tanggal Faktur],\">=\"&M$3,DetailPengeluaran[Tanggal Faktur],\"<=\"&M$4)+SUMIFS(Lainnya[Jumlah Cek],Lainnya[Kode Akun Buku Besar],RingkasanPengeluaranBulanan[[#This Row],[Kode Akun Buku Besar]],Lainnya[Tanggal Pengajuan Permintaan Cek],\">=\"&DATEVALUE(\" 1 \"&RingkasanPengeluaranBulanan[[#Headers],[Oktober]]&_TAHUN),Lainnya[Tanggal Pengajuan Permintaan Cek],\"<=\"&M$4)","v":{"v":0,"d":"Rp0.00"}},{"$f":"SUMIFS(DetailPengeluaran[Jumlah Cek],DetailPengeluaran[Kode Akun Buku Besar],RingkasanPengeluaranBulanan[[#This Row],[Kode Akun Buku Besar]],DetailPengeluaran[Tanggal Faktur],\">=\"&N$3,DetailPengeluaran[Tanggal Faktur],\"<=\"&N$4)+SUMIFS(Lainnya[Jumlah Cek],Lainnya[Kode Akun Buku Besar],RingkasanPengeluaranBulanan[[#This Row],[Kode Akun Buku Besar]],Lainnya[Tanggal Pengajuan Permintaan Cek],\">=\"&DATEVALUE(\" 1 \"&RingkasanPengeluaranBulanan[[#Headers],[November]]&_TAHUN),Lainnya[Tanggal Pengajuan Permintaan Cek],\"<=\"&N$4)","v":{"v":0,"d":"Rp0.00"}},{"$f":"SUMIFS(DetailPengeluaran[Jumlah Cek],DetailPengeluaran[Kode Akun Buku Besar],RingkasanPengeluaranBulanan[[#This Row],[Kode Akun Buku Besar]],DetailPengeluaran[Tanggal Faktur],\">=\"&O$3,DetailPengeluaran[Tanggal Faktur],\"<=\"&O$4)+SUMIFS(Lainnya[Jumlah Cek],Lainnya[Kode Akun Buku Besar],RingkasanPengeluaranBulanan[[#This Row],[Kode Akun Buku Besar]],Lainnya[Tanggal Pengajuan Permintaan Cek],\">=\"&DATEVALUE(\" 1 \"&RingkasanPengeluaranBulanan[[#Headers],[Desember]]&_TAHUN),Lainnya[Tanggal Pengajuan Permintaan Cek],\"<=\"&O$4)","v":{"v":0,"d":"Rp0.00"}},{"$f":"SUM(RingkasanPengeluaranBulanan[[#This Row],[Januari]:[Desember]])","v":{"v":0,"d":"Rp0.00"}}]
[null,4000,"Biaya Server",{"$f":"SUMIFS(DetailPengeluaran[Jumlah Cek],DetailPengeluaran[Kode Akun Buku Besar],RingkasanPengeluaranBulanan[[#This Row],[Kode Akun Buku Besar]],DetailPengeluaran[Tanggal Faktur],\">=\"&D$3,DetailPengeluaran[Tanggal Faktur],\"<=\"&D$4)+SUMIFS(Lainnya[Jumlah Cek],Lainnya[Kode Akun Buku Besar],RingkasanPengeluaranBulanan[[#This Row],[Kode Akun Buku Besar]],Lainnya[Tanggal Pengajuan Permintaan Cek],\">=\"&DATEVALUE(\" 1 \"&RingkasanPengeluaranBulanan[[#Headers],[Januari]]&_TAHUN),Lainnya[Tanggal Pengajuan Permintaan Cek],\"<=\"&D$4)","v":{"v":0,"d":"Rp0.00"}},{"$f":"SUMIFS(DetailPengeluaran[Jumlah Cek],DetailPengeluaran[Kode Akun Buku Besar],RingkasanPengeluaranBulanan[[#This Row],[Kode Akun Buku Besar]],DetailPengeluaran[Tanggal Faktur],\">=\"&E$3,DetailPengeluaran[Tanggal Faktur],\"<=\"&E$4)+SUMIFS(Lainnya[Jumlah Cek],Lainnya[Kode Akun Buku Besar],RingkasanPengeluaranBulanan[[#This Row],[Kode Akun Buku Besar]],Lainnya[Tanggal Pengajuan Permintaan Cek],\">=\"&DATEVALUE(\" 1 \"&RingkasanPengeluaranBulanan[[#Headers],[Februari]]&_TAHUN),Lainnya[Tanggal Pengajuan Permintaan Cek],\"<=\"&E$4)","v":{"v":0,"d":"Rp0.00"}},{"$f":"SUMIFS(DetailPengeluaran[Jumlah Cek],DetailPengeluaran[Kode Akun Buku Besar],RingkasanPengeluaranBulanan[[#This Row],[Kode Akun Buku Besar]],DetailPengeluaran[Tanggal Faktur],\">=\"&F$3,DetailPengeluaran[Tanggal Faktur],\"<=\"&F$4)+SUMIFS(Lainnya[Jumlah Cek],Lainnya[Kode Akun Buku Besar],RingkasanPengeluaranBulanan[[#This Row],[Kode Akun Buku Besar]],Lainnya[Tanggal Pengajuan Permintaan Cek],\">=\"&DATEVALUE(\" 1 \"&RingkasanPengeluaranBulanan[[#Headers],[Maret]]&_TAHUN),Lainnya[Tanggal Pengajuan Permintaan Cek],\"<=\"&F$4)","v":{"v":0,"d":"Rp0.00"}},{"$f":"SUMIFS(DetailPengeluaran[Jumlah Cek],DetailPengeluaran[Kode Akun Buku Besar],RingkasanPengeluaranBulanan[[#This Row],[Kode Akun Buku Besar]],DetailPengeluaran[Tanggal Faktur],\">=\"&G$3,DetailPengeluaran[Tanggal Faktur],\"<=\"&G$4)+SUMIFS(Lainnya[Jumlah Cek],Lainnya[Kode Akun Buku Besar],RingkasanPengeluaranBulanan[[#This Row],[Kode Akun Buku Besar]],Lainnya[Tanggal Pengajuan Permintaan Cek],\">=\"&DATEVALUE(\" 1 \"&RingkasanPengeluaranBulanan[[#Headers],[April]]&_TAHUN),Lainnya[Tanggal Pengajuan Permintaan Cek],\"<=\"&G$4)","v":{"v":0,"d":"Rp0.00"}},{"$f":"SUMIFS(DetailPengeluaran[Jumlah Cek],DetailPengeluaran[Kode Akun Buku Besar],RingkasanPengeluaranBulanan[[#This Row],[Kode Akun Buku Besar]],DetailPengeluaran[Tanggal Faktur],\">=\"&H$3,DetailPengeluaran[Tanggal Faktur],\"<=\"&H$4)+SUMIFS(Lainnya[Jumlah Cek],Lainnya[Kode Akun Buku Besar],RingkasanPengeluaranBulanan[[#This Row],[Kode Akun Buku Besar]],Lainnya[Tanggal Pengajuan Permintaan Cek],\">=\"&DATEVALUE(\" 1 \"&RingkasanPengeluaranBulanan[[#Headers],[Mei]]&_TAHUN),Lainnya[Tanggal Pengajuan Permintaan Cek],\"<=\"&H$4)","v":{"v":0,"d":"Rp0.00"}},{"$f":"SUMIFS(DetailPengeluaran[Jumlah Cek],DetailPengeluaran[Kode Akun Buku Besar],RingkasanPengeluaranBulanan[[#This Row],[Kode Akun Buku Besar]],DetailPengeluaran[Tanggal Faktur],\">=\"&I$3,DetailPengeluaran[Tanggal Faktur],\"<=\"&I$4)+SUMIFS(Lainnya[Jumlah Cek],Lainnya[Kode Akun Buku Besar],RingkasanPengeluaranBulanan[[#This Row],[Kode Akun Buku Besar]],Lainnya[Tanggal Pengajuan Permintaan Cek],\">=\"&DATEVALUE(\" 1 \"&RingkasanPengeluaranBulanan[[#Headers],[Juni]]&_TAHUN),Lainnya[Tanggal Pengajuan Permintaan Cek],\"<=\"&I$4)","v":{"v":0,"d":"Rp0.00"}},{"$f":"SUMIFS(DetailPengeluaran[Jumlah Cek],DetailPengeluaran[Kode Akun Buku Besar],RingkasanPengeluaranBulanan[[#This Row],[Kode Akun Buku Besar]],DetailPengeluaran[Tanggal Faktur],\">=\"&J$3,DetailPengeluaran[Tanggal Faktur],\"<=\"&J$4)+SUMIFS(Lainnya[Jumlah Cek],Lainnya[Kode Akun Buku Besar],RingkasanPengeluaranBulanan[[#This Row],[Kode Akun Buku Besar]],Lainnya[Tanggal Pengajuan Permintaan Cek],\">=\"&DATEVALUE(\" 1 \"&RingkasanPengeluaranBulanan[[#Headers],[Juli]]&_TAHUN),Lainnya[Tanggal Pengajuan Permintaan Cek],\"<=\"&J$4)","v":{"v":0,"d":"Rp0.00"}},{"$f":"SUMIFS(DetailPengeluaran[Jumlah Cek],DetailPengeluaran[Kode Akun Buku Besar],RingkasanPengeluaranBulanan[[#This Row],[Kode Akun Buku Besar]],DetailPengeluaran[Tanggal Faktur],\">=\"&K$3,DetailPengeluaran[Tanggal Faktur],\"<=\"&K$4)+SUMIFS(Lainnya[Jumlah Cek],Lainnya[Kode Akun Buku Besar],RingkasanPengeluaranBulanan[[#This Row],[Kode Akun Buku Besar]],Lainnya[Tanggal Pengajuan Permintaan Cek],\">=\"&DATEVALUE(\" 1 \"&RingkasanPengeluaranBulanan[[#Headers],[Agustus]]&_TAHUN),Lainnya[Tanggal Pengajuan Permintaan Cek],\"<=\"&K$4)","v":{"v":0,"d":"Rp0.00"}},{"$f":"SUMIFS(DetailPengeluaran[Jumlah Cek],DetailPengeluaran[Kode Akun Buku Besar],RingkasanPengeluaranBulanan[[#This Row],[Kode Akun Buku Besar]],DetailPengeluaran[Tanggal Faktur],\">=\"&L$3,DetailPengeluaran[Tanggal Faktur],\"<=\"&L$4)+SUMIFS(Lainnya[Jumlah Cek],Lainnya[Kode Akun Buku Besar],RingkasanPengeluaranBulanan[[#This Row],[Kode Akun Buku Besar]],Lainnya[Tanggal Pengajuan Permintaan Cek],\">=\"&DATEVALUE(\" 1 \"&RingkasanPengeluaranBulanan[[#Headers],[September]]&_TAHUN),Lainnya[Tanggal Pengajuan Permintaan Cek],\"<=\"&L$4)","v":{"v":0,"d":"Rp0.00"}},{"$f":"SUMIFS(DetailPengeluaran[Jumlah Cek],DetailPengeluaran[Kode Akun Buku Besar],RingkasanPengeluaranBulanan[[#This Row],[Kode Akun Buku Besar]],DetailPengeluaran[Tanggal Faktur],\">=\"&M$3,DetailPengeluaran[Tanggal Faktur],\"<=\"&M$4)+SUMIFS(Lainnya[Jumlah Cek],Lainnya[Kode Akun Buku Besar],RingkasanPengeluaranBulanan[[#This Row],[Kode Akun Buku Besar]],Lainnya[Tanggal Pengajuan Permintaan Cek],\">=\"&DATEVALUE(\" 1 \"&RingkasanPengeluaranBulanan[[#Headers],[Oktober]]&_TAHUN),Lainnya[Tanggal Pengajuan Permintaan Cek],\"<=\"&M$4)","v":{"v":0,"d":"Rp0.00"}},{"$f":"SUMIFS(DetailPengeluaran[Jumlah Cek],DetailPengeluaran[Kode Akun Buku Besar],RingkasanPengeluaranBulanan[[#This Row],[Kode Akun Buku Besar]],DetailPengeluaran[Tanggal Faktur],\">=\"&N$3,DetailPengeluaran[Tanggal Faktur],\"<=\"&N$4)+SUMIFS(Lainnya[Jumlah Cek],Lainnya[Kode Akun Buku Besar],RingkasanPengeluaranBulanan[[#This Row],[Kode Akun Buku Besar]],Lainnya[Tanggal Pengajuan Permintaan Cek],\">=\"&DATEVALUE(\" 1 \"&RingkasanPengeluaranBulanan[[#Headers],[November]]&_TAHUN),Lainnya[Tanggal Pengajuan Permintaan Cek],\"<=\"&N$4)","v":{"v":0,"d":"Rp0.00"}},{"$f":"SUMIFS(DetailPengeluaran[Jumlah Cek],DetailPengeluaran[Kode Akun Buku Besar],RingkasanPengeluaranBulanan[[#This Row],[Kode Akun Buku Besar]],DetailPengeluaran[Tanggal Faktur],\">=\"&O$3,DetailPengeluaran[Tanggal Faktur],\"<=\"&O$4)+SUMIFS(Lainnya[Jumlah Cek],Lainnya[Kode Akun Buku Besar],RingkasanPengeluaranBulanan[[#This Row],[Kode Akun Buku Besar]],Lainnya[Tanggal Pengajuan Permintaan Cek],\">=\"&DATEVALUE(\" 1 \"&RingkasanPengeluaranBulanan[[#Headers],[Desember]]&_TAHUN),Lainnya[Tanggal Pengajuan Permintaan Cek],\"<=\"&O$4)","v":{"v":0,"d":"Rp0.00"}},{"$f":"SUM(RingkasanPengeluaranBulanan[[#This Row],[Januari]:[Desember]])","v":{"v":0,"d":"Rp0.00"}}]
[null,5000,"Perlengkapan",{"$f":"SUMIFS(DetailPengeluaran[Jumlah Cek],DetailPengeluaran[Kode Akun Buku Besar],RingkasanPengeluaranBulanan[[#This Row],[Kode Akun Buku Besar]],DetailPengeluaran[Tanggal Faktur],\">=\"&D$3,DetailPengeluaran[Tanggal Faktur],\"<=\"&D$4)+SUMIFS(Lainnya[Jumlah Cek],Lainnya[Kode Akun Buku Besar],RingkasanPengeluaranBulanan[[#This Row],[Kode Akun Buku Besar]],Lainnya[Tanggal Pengajuan Permintaan Cek],\">=\"&DATEVALUE(\" 1 \"&RingkasanPengeluaranBulanan[[#Headers],[Januari]]&_TAHUN),Lainnya[Tanggal Pengajuan Permintaan Cek],\"<=\"&D$4)","v":{"v":0,"d":"Rp0.00"}},{"$f":"SUMIFS(DetailPengeluaran[Jumlah Cek],DetailPengeluaran[Kode Akun Buku Besar],RingkasanPengeluaranBulanan[[#This Row],[Kode Akun Buku Besar]],DetailPengeluaran[Tanggal Faktur],\">=\"&E$3,DetailPengeluaran[Tanggal Faktur],\"<=\"&E$4)+SUMIFS(Lainnya[Jumlah Cek],Lainnya[Kode Akun Buku Besar],RingkasanPengeluaranBulanan[[#This Row],[Kode Akun Buku Besar]],Lainnya[Tanggal Pengajuan Permintaan Cek],\">=\"&DATEVALUE(\" 1 \"&RingkasanPengeluaranBulanan[[#Headers],[Februari]]&_TAHUN),Lainnya[Tanggal Pengajuan Permintaan Cek],\"<=\"&E$4)","v":{"v":0,"d":"Rp0.00"}},{"$f":"SUMIFS(DetailPengeluaran[Jumlah Cek],DetailPengeluaran[Kode Akun Buku Besar],RingkasanPengeluaranBulanan[[#This Row],[Kode Akun Buku Besar]],DetailPengeluaran[Tanggal Faktur],\">=\"&F$3,DetailPengeluaran[Tanggal Faktur],\"<=\"&F$4)+SUMIFS(Lainnya[Jumlah Cek],Lainnya[Kode Akun Buku Besar],RingkasanPengeluaranBulanan[[#This Row],[Kode Akun Buku Besar]],Lainnya[Tanggal Pengajuan Permintaan Cek],\">=\"&DATEVALUE(\" 1 \"&RingkasanPengeluaranBulanan[[#Headers],[Maret]]&_TAHUN),Lainnya[Tanggal Pengajuan Permintaan Cek],\"<=\"&F$4)","v":{"v":0,"d":"Rp0.00"}},{"$f":"SUMIFS(DetailPengeluaran[Jumlah Cek],DetailPengeluaran[Kode Akun Buku Besar],RingkasanPengeluaranBulanan[[#This Row],[Kode Akun Buku Besar]],DetailPengeluaran[Tanggal Faktur],\">=\"&G$3,DetailPengeluaran[Tanggal Faktur],\"<=\"&G$4)+SUMIFS(Lainnya[Jumlah Cek],Lainnya[Kode Akun Buku Besar],RingkasanPengeluaranBulanan[[#This Row],[Kode Akun Buku Besar]],Lainnya[Tanggal Pengajuan Permintaan Cek],\">=\"&DATEVALUE(\" 1 \"&RingkasanPengeluaranBulanan[[#Headers],[April]]&_TAHUN),Lainnya[Tanggal Pengajuan Permintaan Cek],\"<=\"&G$4)","v":{"v":0,"d":"Rp0.00"}},{"$f":"SUMIFS(DetailPengeluaran[Jumlah Cek],DetailPengeluaran[Kode Akun Buku Besar],RingkasanPengeluaranBulanan[[#This Row],[Kode Akun Buku Besar]],DetailPengeluaran[Tanggal Faktur],\">=\"&H$3,DetailPengeluaran[Tanggal Faktur],\"<=\"&H$4)+SUMIFS(Lainnya[Jumlah Cek],Lainnya[Kode Akun Buku Besar],RingkasanPengeluaranBulanan[[#This Row],[Kode Akun Buku Besar]],Lainnya[Tanggal Pengajuan Permintaan Cek],\">=\"&DATEVALUE(\" 1 \"&RingkasanPengeluaranBulanan[[#Headers],[Mei]]&_TAHUN),Lainnya[Tanggal Pengajuan Permintaan Cek],\"<=\"&H$4)","v":{"v":0,"d":"Rp0.00"}},{"$f":"SUMIFS(DetailPengeluaran[Jumlah Cek],DetailPengeluaran[Kode Akun Buku Besar],RingkasanPengeluaranBulanan[[#This Row],[Kode Akun Buku Besar]],DetailPengeluaran[Tanggal Faktur],\">=\"&I$3,DetailPengeluaran[Tanggal Faktur],\"<=\"&I$4)+SUMIFS(Lainnya[Jumlah Cek],Lainnya[Kode Akun Buku Besar],RingkasanPengeluaranBulanan[[#This Row],[Kode Akun Buku Besar]],Lainnya[Tanggal Pengajuan Permintaan Cek],\">=\"&DATEVALUE(\" 1 \"&RingkasanPengeluaranBulanan[[#Headers],[Juni]]&_TAHUN),Lainnya[Tanggal Pengajuan Permintaan Cek],\"<=\"&I$4)","v":{"v":0,"d":"Rp0.00"}},{"$f":"SUMIFS(DetailPengeluaran[Jumlah Cek],DetailPengeluaran[Kode Akun Buku Besar],RingkasanPengeluaranBulanan[[#This Row],[Kode Akun Buku Besar]],DetailPengeluaran[Tanggal Faktur],\">=\"&J$3,DetailPengeluaran[Tanggal Faktur],\"<=\"&J$4)+SUMIFS(Lainnya[Jumlah Cek],Lainnya[Kode Akun Buku Besar],RingkasanPengeluaranBulanan[[#This Row],[Kode Akun Buku Besar]],Lainnya[Tanggal Pengajuan Permintaan Cek],\">=\"&DATEVALUE(\" 1 \"&RingkasanPengeluaranBulanan[[#Headers],[Juli]]&_TAHUN),Lainnya[Tanggal Pengajuan Permintaan Cek],\"<=\"&J$4)","v":{"v":0,"d":"Rp0.00"}},{"$f":"SUMIFS(DetailPengeluaran[Jumlah Cek],DetailPengeluaran[Kode Akun Buku Besar],RingkasanPengeluaranBulanan[[#This Row],[Kode Akun Buku Besar]],DetailPengeluaran[Tanggal Faktur],\">=\"&K$3,DetailPengeluaran[Tanggal Faktur],\"<=\"&K$4)+SUMIFS(Lainnya[Jumlah Cek],Lainnya[Kode Akun Buku Besar],RingkasanPengeluaranBulanan[[#This Row],[Kode Akun Buku Besar]],Lainnya[Tanggal Pengajuan Permintaan Cek],\">=\"&DATEVALUE(\" 1 \"&RingkasanPengeluaranBulanan[[#Headers],[Agustus]]&_TAHUN),Lainnya[Tanggal Pengajuan Permintaan Cek],\"<=\"&K$4)","v":{"v":0,"d":"Rp0.00"}},{"$f":"SUMIFS(DetailPengeluaran[Jumlah Cek],DetailPengeluaran[Kode Akun Buku Besar],RingkasanPengeluaranBulanan[[#This Row],[Kode Akun Buku Besar]],DetailPengeluaran[Tanggal Faktur],\">=\"&L$3,DetailPengeluaran[Tanggal Faktur],\"<=\"&L$4)+SUMIFS(Lainnya[Jumlah Cek],Lainnya[Kode Akun Buku Besar],RingkasanPengeluaranBulanan[[#This Row],[Kode Akun Buku Besar]],Lainnya[Tanggal Pengajuan Permintaan Cek],\">=\"&DATEVALUE(\" 1 \"&RingkasanPengeluaranBulanan[[#Headers],[September]]&_TAHUN),Lainnya[Tanggal Pengajuan Permintaan Cek],\"<=\"&L$4)","v":{"v":0,"d":"Rp0.00"}},{"$f":"SUMIFS(DetailPengeluaran[Jumlah Cek],DetailPengeluaran[Kode Akun Buku Besar],RingkasanPengeluaranBulanan[[#This Row],[Kode Akun Buku Besar]],DetailPengeluaran[Tanggal Faktur],\">=\"&M$3,DetailPengeluaran[Tanggal Faktur],\"<=\"&M$4)+SUMIFS(Lainnya[Jumlah Cek],Lainnya[Kode Akun Buku Besar],RingkasanPengeluaranBulanan[[#This Row],[Kode Akun Buku Besar]],Lainnya[Tanggal Pengajuan Permintaan Cek],\">=\"&DATEVALUE(\" 1 \"&RingkasanPengeluaranBulanan[[#Headers],[Oktober]]&_TAHUN),Lainnya[Tanggal Pengajuan Permintaan Cek],\"<=\"&M$4)","v":{"v":0,"d":"Rp0.00"}},{"$f":"SUMIFS(DetailPengeluaran[Jumlah Cek],DetailPengeluaran[Kode Akun Buku Besar],RingkasanPengeluaranBulanan[[#This Row],[Kode Akun Buku Besar]],DetailPengeluaran[Tanggal Faktur],\">=\"&N$3,DetailPengeluaran[Tanggal Faktur],\"<=\"&N$4)+SUMIFS(Lainnya[Jumlah Cek],Lainnya[Kode Akun Buku Besar],RingkasanPengeluaranBulanan[[#This Row],[Kode Akun Buku Besar]],Lainnya[Tanggal Pengajuan Permintaan Cek],\">=\"&DATEVALUE(\" 1 \"&RingkasanPengeluaranBulanan[[#Headers],[November]]&_TAHUN),Lainnya[Tanggal Pengajuan Permintaan Cek],\"<=\"&N$4)","v":{"v":0,"d":"Rp0.00"}},{"$f":"SUMIFS(DetailPengeluaran[Jumlah Cek],DetailPengeluaran[Kode Akun Buku Besar],RingkasanPengeluaranBulanan[[#This Row],[Kode Akun Buku Besar]],DetailPengeluaran[Tanggal Faktur],\">=\"&O$3,DetailPengeluaran[Tanggal Faktur],\"<=\"&O$4)+SUMIFS(Lainnya[Jumlah Cek],Lainnya[Kode Akun Buku Besar],RingkasanPengeluaranBulanan[[#This Row],[Kode Akun Buku Besar]],Lainnya[Tanggal Pengajuan Permintaan Cek],\">=\"&DATEVALUE(\" 1 \"&RingkasanPengeluaranBulanan[[#Headers],[Desember]]&_TAHUN),Lainnya[Tanggal Pengajuan Permintaan Cek],\"<=\"&O$4)","v":{"v":0,"d":"Rp0.00"}},{"$f":"SUM(RingkasanPengeluaranBulanan[[#This Row],[Januari]:[Desember]])","v":{"v":0,"d":"Rp0.00"}}]
[null,6000,"Pengeluaran Klien",{"$f":"SUMIFS(DetailPengeluaran[Jumlah Cek],DetailPengeluaran[Kode Akun Buku Besar],RingkasanPengeluaranBulanan[[#This Row],[Kode Akun Buku Besar]],DetailPengeluaran[Tanggal Faktur],\">=\"&D$3,DetailPengeluaran[Tanggal Faktur],\"<=\"&D$4)+SUMIFS(Lainnya[Jumlah Cek],Lainnya[Kode Akun Buku Besar],RingkasanPengeluaranBulanan[[#This Row],[Kode Akun Buku Besar]],Lainnya[Tanggal Pengajuan Permintaan Cek],\">=\"&DATEVALUE(\" 1 \"&RingkasanPengeluaranBulanan[[#Headers],[Januari]]&_TAHUN),Lainnya[Tanggal Pengajuan Permintaan Cek],\"<=\"&D$4)","v":{"v":0,"d":"Rp0.00"}},{"$f":"SUMIFS(DetailPengeluaran[Jumlah Cek],DetailPengeluaran[Kode Akun Buku Besar],RingkasanPengeluaranBulanan[[#This Row],[Kode Akun Buku Besar]],DetailPengeluaran[Tanggal Faktur],\">=\"&E$3,DetailPengeluaran[Tanggal Faktur],\"<=\"&E$4)+SUMIFS(Lainnya[Jumlah Cek],Lainnya[Kode Akun Buku Besar],RingkasanPengeluaranBulanan[[#This Row],[Kode Akun Buku Besar]],Lainnya[Tanggal Pengajuan Permintaan Cek],\">=\"&DATEVALUE(\" 1 \"&RingkasanPengeluaranBulanan[[#Headers],[Februari]]&_TAHUN),Lainnya[Tanggal Pengajuan Permintaan Cek],\"<=\"&E$4)","v":{"v":0,"d":"Rp0.00"}},{"$f":"SUMIFS(DetailPengeluaran[Jumlah Cek],DetailPengeluaran[Kode Akun Buku Besar],RingkasanPengeluaranBulanan[[#This Row],[Kode Akun Buku Besar]],DetailPengeluaran[Tanggal Faktur],\">=\"&F$3,DetailPengeluaran[Tanggal Faktur],\"<=\"&F$4)+SUMIFS(Lainnya[Jumlah Cek],Lainnya[Kode Akun Buku Besar],RingkasanPengeluaranBulanan[[#This Row],[Kode Akun Buku Besar]],Lainnya[Tanggal Pengajuan Permintaan Cek],\">=\"&DATEVALUE(\" 1 \"&RingkasanPengeluaranBulanan[[#Headers],[Maret]]&_TAHUN),Lainnya[Tanggal Pengajuan Permintaan Cek],\"<=\"&F$4)","v":{"v":0,"d":"Rp0.00"}},{"$f":"SUMIFS(DetailPengeluaran[Jumlah Cek],DetailPengeluaran[Kode Akun Buku Besar],RingkasanPengeluaranBulanan[[#This Row],[Kode Akun Buku Besar]],DetailPengeluaran[Tanggal Faktur],\">=\"&G$3,DetailPengeluaran[Tanggal Faktur],\"<=\"&G$4)+SUMIFS(Lainnya[Jumlah Cek],Lainnya[Kode Akun Buku Besar],RingkasanPengeluaranBulanan[[#This Row],[Kode Akun Buku Besar]],Lainnya[Tanggal Pengajuan Permintaan Cek],\">=\"&DATEVALUE(\" 1 \"&RingkasanPengeluaranBulanan[[#Headers],[April]]&_TAHUN),Lainnya[Tanggal Pengajuan Permintaan Cek],\"<=\"&G$4)","v":{"v":0,"d":"Rp0.00"}},{"$f":"SUMIFS(DetailPengeluaran[Jumlah Cek],DetailPengeluaran[Kode Akun Buku Besar],RingkasanPengeluaranBulanan[[#This Row],[Kode Akun Buku Besar]],DetailPengeluaran[Tanggal Faktur],\">=\"&H$3,DetailPengeluaran[Tanggal Faktur],\"<=\"&H$4)+SUMIFS(Lainnya[Jumlah Cek],Lainnya[Kode Akun Buku Besar],RingkasanPengeluaranBulanan[[#This Row],[Kode Akun Buku Besar]],Lainnya[Tanggal Pengajuan Permintaan Cek],\">=\"&DATEVALUE(\" 1 \"&RingkasanPengeluaranBulanan[[#Headers],[Mei]]&_TAHUN),Lainnya[Tanggal Pengajuan Permintaan Cek],\"<=\"&H$4)","v":{"v":0,"d":"Rp0.00"}},{"$f":"SUMIFS(DetailPengeluaran[Jumlah Cek],DetailPengeluaran[Kode Akun Buku Besar],RingkasanPengeluaranBulanan[[#This Row],[Kode Akun Buku Besar]],DetailPengeluaran[Tanggal Faktur],\">=\"&I$3,DetailPengeluaran[Tanggal Faktur],\"<=\"&I$4)+SUMIFS(Lainnya[Jumlah Cek],Lainnya[Kode Akun Buku Besar],RingkasanPengeluaranBulanan[[#This Row],[Kode Akun Buku Besar]],Lainnya[Tanggal Pengajuan Permintaan Cek],\">=\"&DATEVALUE(\" 1 \"&RingkasanPengeluaranBulanan[[#Headers],[Juni]]&_TAHUN),Lainnya[Tanggal Pengajuan Permintaan Cek],\"<=\"&I$4)","v":{"v":0,"d":"Rp0.00"}},{"$f":"SUMIFS(DetailPengeluaran[Jumlah Cek],DetailPengeluaran[Kode Akun Buku Besar],RingkasanPengeluaranBulanan[[#This Row],[Kode Akun Buku Besar]],DetailPengeluaran[Tanggal Faktur],\">=\"&J$3,DetailPengeluaran[Tanggal Faktur],\"<=\"&J$4)+SUMIFS(Lainnya[Jumlah Cek],Lainnya[Kode Akun Buku Besar],RingkasanPengeluaranBulanan[[#This Row],[Kode Akun Buku Besar]],Lainnya[Tanggal Pengajuan Permintaan Cek],\">=\"&DATEVALUE(\" 1 \"&RingkasanPengeluaranBulanan[[#Headers],[Juli]]&_TAHUN),Lainnya[Tanggal Pengajuan Permintaan Cek],\"<=\"&J$4)","v":{"v":0,"d":"Rp0.00"}},{"$f":"SUMIFS(DetailPengeluaran[Jumlah Cek],DetailPengeluaran[Kode Akun Buku Besar],RingkasanPengeluaranBulanan[[#This Row],[Kode Akun Buku Besar]],DetailPengeluaran[Tanggal Faktur],\">=\"&K$3,DetailPengeluaran[Tanggal Faktur],\"<=\"&K$4)+SUMIFS(Lainnya[Jumlah Cek],Lainnya[Kode Akun Buku Besar],RingkasanPengeluaranBulanan[[#This Row],[Kode Akun Buku Besar]],Lainnya[Tanggal Pengajuan Permintaan Cek],\">=\"&DATEVALUE(\" 1 \"&RingkasanPengeluaranBulanan[[#Headers],[Agustus]]&_TAHUN),Lainnya[Tanggal Pengajuan Permintaan Cek],\"<=\"&K$4)","v":{"v":0,"d":"Rp0.00"}},{"$f":"SUMIFS(DetailPengeluaran[Jumlah Cek],DetailPengeluaran[Kode Akun Buku Besar],RingkasanPengeluaranBulanan[[#This Row],[Kode Akun Buku Besar]],DetailPengeluaran[Tanggal Faktur],\">=\"&L$3,DetailPengeluaran[Tanggal Faktur],\"<=\"&L$4)+SUMIFS(Lainnya[Jumlah Cek],Lainnya[Kode Akun Buku Besar],RingkasanPengeluaranBulanan[[#This Row],[Kode Akun Buku Besar]],Lainnya[Tanggal Pengajuan Permintaan Cek],\">=\"&DATEVALUE(\" 1 \"&RingkasanPengeluaranBulanan[[#Headers],[September]]&_TAHUN),Lainnya[Tanggal Pengajuan Permintaan Cek],\"<=\"&L$4)","v":{"v":0,"d":"Rp0.00"}},{"$f":"SUMIFS(DetailPengeluaran[Jumlah Cek],DetailPengeluaran[Kode Akun Buku Besar],RingkasanPengeluaranBulanan[[#This Row],[Kode Akun Buku Besar]],DetailPengeluaran[Tanggal Faktur],\">=\"&M$3,DetailPengeluaran[Tanggal Faktur],\"<=\"&M$4)+SUMIFS(Lainnya[Jumlah Cek],Lainnya[Kode Akun Buku Besar],RingkasanPengeluaranBulanan[[#This Row],[Kode Akun Buku Besar]],Lainnya[Tanggal Pengajuan Permintaan Cek],\">=\"&DATEVALUE(\" 1 \"&RingkasanPengeluaranBulanan[[#Headers],[Oktober]]&_TAHUN),Lainnya[Tanggal Pengajuan Permintaan Cek],\"<=\"&M$4)","v":{"v":0,"d":"Rp0.00"}},{"$f":"SUMIFS(DetailPengeluaran[Jumlah Cek],DetailPengeluaran[Kode Akun Buku Besar],RingkasanPengeluaranBulanan[[#This Row],[Kode Akun Buku Besar]],DetailPengeluaran[Tanggal Faktur],\">=\"&N$3,DetailPengeluaran[Tanggal Faktur],\"<=\"&N$4)+SUMIFS(Lainnya[Jumlah Cek],Lainnya[Kode Akun Buku Besar],RingkasanPengeluaranBulanan[[#This Row],[Kode Akun Buku Besar]],Lainnya[Tanggal Pengajuan Permintaan Cek],\">=\"&DATEVALUE(\" 1 \"&RingkasanPengeluaranBulanan[[#Headers],[November]]&_TAHUN),Lainnya[Tanggal Pengajuan Permintaan Cek],\"<=\"&N$4)","v":{"v":0,"d":"Rp0.00"}},{"$f":"SUMIFS(DetailPengeluaran[Jumlah Cek],DetailPengeluaran[Kode Akun Buku Besar],RingkasanPengeluaranBulanan[[#This Row],[Kode Akun Buku Besar]],DetailPengeluaran[Tanggal Faktur],\">=\"&O$3,DetailPengeluaran[Tanggal Faktur],\"<=\"&O$4)+SUMIFS(Lainnya[Jumlah Cek],Lainnya[Kode Akun Buku Besar],RingkasanPengeluaranBulanan[[#This Row],[Kode Akun Buku Besar]],Lainnya[Tanggal Pengajuan Permintaan Cek],\">=\"&DATEVALUE(\" 1 \"&RingkasanPengeluaranBulanan[[#Headers],[Desember]]&_TAHUN),Lainnya[Tanggal Pengajuan Permintaan Cek],\"<=\"&O$4)","v":{"v":0,"d":"Rp0.00"}},{"$f":"SUM(RingkasanPengeluaranBulanan[[#This Row],[Januari]:[Desember]])","v":{"v":0,"d":"Rp0.00"}}]
[null,7000,"Komputer",{"$f":"SUMIFS(DetailPengeluaran[Jumlah Cek],DetailPengeluaran[Kode Akun Buku Besar],RingkasanPengeluaranBulanan[[#This Row],[Kode Akun Buku Besar]],DetailPengeluaran[Tanggal Faktur],\">=\"&D$3,DetailPengeluaran[Tanggal Faktur],\"<=\"&D$4)+SUMIFS(Lainnya[Jumlah Cek],Lainnya[Kode Akun Buku Besar],RingkasanPengeluaranBulanan[[#This Row],[Kode Akun Buku Besar]],Lainnya[Tanggal Pengajuan Permintaan Cek],\">=\"&DATEVALUE(\" 1 \"&RingkasanPengeluaranBulanan[[#Headers],[Januari]]&_TAHUN),Lainnya[Tanggal Pengajuan Permintaan Cek],\"<=\"&D$4)","v":{"v":0,"d":"Rp0.00"}},{"$f":"SUMIFS(DetailPengeluaran[Jumlah Cek],DetailPengeluaran[Kode Akun Buku Besar],RingkasanPengeluaranBulanan[[#This Row],[Kode Akun Buku Besar]],DetailPengeluaran[Tanggal Faktur],\">=\"&E$3,DetailPengeluaran[Tanggal Faktur],\"<=\"&E$4)+SUMIFS(Lainnya[Jumlah Cek],Lainnya[Kode Akun Buku Besar],RingkasanPengeluaranBulanan[[#This Row],[Kode Akun Buku Besar]],Lainnya[Tanggal Pengajuan Permintaan Cek],\">=\"&DATEVALUE(\" 1 \"&RingkasanPengeluaranBulanan[[#Headers],[Februari]]&_TAHUN),Lainnya[Tanggal Pengajuan Permintaan Cek],\"<=\"&E$4)","v":{"v":0,"d":"Rp0.00"}},{"$f":"SUMIFS(DetailPengeluaran[Jumlah Cek],DetailPengeluaran[Kode Akun Buku Besar],RingkasanPengeluaranBulanan[[#This Row],[Kode Akun Buku Besar]],DetailPengeluaran[Tanggal Faktur],\">=\"&F$3,DetailPengeluaran[Tanggal Faktur],\"<=\"&F$4)+SUMIFS(Lainnya[Jumlah Cek],Lainnya[Kode Akun Buku Besar],RingkasanPengeluaranBulanan[[#This Row],[Kode Akun Buku Besar]],Lainnya[Tanggal Pengajuan Permintaan Cek],\">=\"&DATEVALUE(\" 1 \"&RingkasanPengeluaranBulanan[[#Headers],[Maret]]&_TAHUN),Lainnya[Tanggal Pengajuan Permintaan Cek],\"<=\"&F$4)","v":{"v":0,"d":"Rp0.00"}},{"$f":"SUMIFS(DetailPengeluaran[Jumlah Cek],DetailPengeluaran[Kode Akun Buku Besar],RingkasanPengeluaranBulanan[[#This Row],[Kode Akun Buku Besar]],DetailPengeluaran[Tanggal Faktur],\">=\"&G$3,DetailPengeluaran[Tanggal Faktur],\"<=\"&G$4)+SUMIFS(Lainnya[Jumlah Cek],Lainnya[Kode Akun Buku Besar],RingkasanPengeluaranBulanan[[#This Row],[Kode Akun Buku Besar]],Lainnya[Tanggal Pengajuan Permintaan Cek],\">=\"&DATEVALUE(\" 1 \"&RingkasanPengeluaranBulanan[[#Headers],[April]]&_TAHUN),Lainnya[Tanggal Pengajuan Permintaan Cek],\"<=\"&G$4)","v":{"v":0,"d":"Rp0.00"}},{"$f":"SUMIFS(DetailPengeluaran[Jumlah Cek],DetailPengeluaran[Kode Akun Buku Besar],RingkasanPengeluaranBulanan[[#This Row],[Kode Akun Buku Besar]],DetailPengeluaran[Tanggal Faktur],\">=\"&H$3,DetailPengeluaran[Tanggal Faktur],\"<=\"&H$4)+SUMIFS(Lainnya[Jumlah Cek],Lainnya[Kode Akun Buku Besar],RingkasanPengeluaranBulanan[[#This Row],[Kode Akun Buku Besar]],Lainnya[Tanggal Pengajuan Permintaan Cek],\">=\"&DATEVALUE(\" 1 \"&RingkasanPengeluaranBulanan[[#Headers],[Mei]]&_TAHUN),Lainnya[Tanggal Pengajuan Permintaan Cek],\"<=\"&H$4)","v":{"v":0,"d":"Rp0.00"}},{"$f":"SUMIFS(DetailPengeluaran[Jumlah Cek],DetailPengeluaran[Kode Akun Buku Besar],RingkasanPengeluaranBulanan[[#This Row],[Kode Akun Buku Besar]],DetailPengeluaran[Tanggal Faktur],\">=\"&I$3,DetailPengeluaran[Tanggal Faktur],\"<=\"&I$4)+SUMIFS(Lainnya[Jumlah Cek],Lainnya[Kode Akun Buku Besar],RingkasanPengeluaranBulanan[[#This Row],[Kode Akun Buku Besar]],Lainnya[Tanggal Pengajuan Permintaan Cek],\">=\"&DATEVALUE(\" 1 \"&RingkasanPengeluaranBulanan[[#Headers],[Juni]]&_TAHUN),Lainnya[Tanggal Pengajuan Permintaan Cek],\"<=\"&I$4)","v":{"v":0,"d":"Rp0.00"}},{"$f":"SUMIFS(DetailPengeluaran[Jumlah Cek],DetailPengeluaran[Kode Akun Buku Besar],RingkasanPengeluaranBulanan[[#This Row],[Kode Akun Buku Besar]],DetailPengeluaran[Tanggal Faktur],\">=\"&J$3,DetailPengeluaran[Tanggal Faktur],\"<=\"&J$4)+SUMIFS(Lainnya[Jumlah Cek],Lainnya[Kode Akun Buku Besar],RingkasanPengeluaranBulanan[[#This Row],[Kode Akun Buku Besar]],Lainnya[Tanggal Pengajuan Permintaan Cek],\">=\"&DATEVALUE(\" 1 \"&RingkasanPengeluaranBulanan[[#Headers],[Juli]]&_TAHUN),Lainnya[Tanggal Pengajuan Permintaan Cek],\"<=\"&J$4)","v":{"v":0,"d":"Rp0.00"}},{"$f":"SUMIFS(DetailPengeluaran[Jumlah Cek],DetailPengeluaran[Kode Akun Buku Besar],RingkasanPengeluaranBulanan[[#This Row],[Kode Akun Buku Besar]],DetailPengeluaran[Tanggal Faktur],\">=\"&K$3,DetailPengeluaran[Tanggal Faktur],\"<=\"&K$4)+SUMIFS(Lainnya[Jumlah Cek],Lainnya[Kode Akun Buku Besar],RingkasanPengeluaranBulanan[[#This Row],[Kode Akun Buku Besar]],Lainnya[Tanggal Pengajuan Permintaan Cek],\">=\"&DATEVALUE(\" 1 \"&RingkasanPengeluaranBulanan[[#Headers],[Agustus]]&_TAHUN),Lainnya[Tanggal Pengajuan Permintaan Cek],\"<=\"&K$4)","v":{"v":0,"d":"Rp0.00"}},{"$f":"SUMIFS(DetailPengeluaran[Jumlah Cek],DetailPengeluaran[Kode Akun Buku Besar],RingkasanPengeluaranBulanan[[#This Row],[Kode Akun Buku Besar]],DetailPengeluaran[Tanggal Faktur],\">=\"&L$3,DetailPengeluaran[Tanggal Faktur],\"<=\"&L$4)+SUMIFS(Lainnya[Jumlah Cek],Lainnya[Kode Akun Buku Besar],RingkasanPengeluaranBulanan[[#This Row],[Kode Akun Buku Besar]],Lainnya[Tanggal Pengajuan Permintaan Cek],\">=\"&DATEVALUE(\" 1 \"&RingkasanPengeluaranBulanan[[#Headers],[September]]&_TAHUN),Lainnya[Tanggal Pengajuan Permintaan Cek],\"<=\"&L$4)","v":{"v":0,"d":"Rp0.00"}},{"$f":"SUMIFS(DetailPengeluaran[Jumlah Cek],DetailPengeluaran[Kode Akun Buku Besar],RingkasanPengeluaranBulanan[[#This Row],[Kode Akun Buku Besar]],DetailPengeluaran[Tanggal Faktur],\">=\"&M$3,DetailPengeluaran[Tanggal Faktur],\"<=\"&M$4)+SUMIFS(Lainnya[Jumlah Cek],Lainnya[Kode Akun Buku Besar],RingkasanPengeluaranBulanan[[#This Row],[Kode Akun Buku Besar]],Lainnya[Tanggal Pengajuan Permintaan Cek],\">=\"&DATEVALUE(\" 1 \"&RingkasanPengeluaranBulanan[[#Headers],[Oktober]]&_TAHUN),Lainnya[Tanggal Pengajuan Permintaan Cek],\"<=\"&M$4)","v":{"v":0,"d":"Rp0.00"}},{"$f":"SUMIFS(DetailPengeluaran[Jumlah Cek],DetailPengeluaran[Kode Akun Buku Besar],RingkasanPengeluaranBulanan[[#This Row],[Kode Akun Buku Besar]],DetailPengeluaran[Tanggal Faktur],\">=\"&N$3,DetailPengeluaran[Tanggal Faktur],\"<=\"&N$4)+SUMIFS(Lainnya[Jumlah Cek],Lainnya[Kode Akun Buku Besar],RingkasanPengeluaranBulanan[[#This Row],[Kode Akun Buku Besar]],Lainnya[Tanggal Pengajuan Permintaan Cek],\">=\"&DATEVALUE(\" 1 \"&RingkasanPengeluaranBulanan[[#Headers],[November]]&_TAHUN),Lainnya[Tanggal Pengajuan Permintaan Cek],\"<=\"&N$4)","v":{"v":0,"d":"Rp0.00"}},{"$f":"SUMIFS(DetailPengeluaran[Jumlah Cek],DetailPengeluaran[Kode Akun Buku Besar],RingkasanPengeluaranBulanan[[#This Row],[Kode Akun Buku Besar]],DetailPengeluaran[Tanggal Faktur],\">=\"&O$3,DetailPengeluaran[Tanggal Faktur],\"<=\"&O$4)+SUMIFS(Lainnya[Jumlah Cek],Lainnya[Kode Akun Buku Besar],RingkasanPengeluaranBulanan[[#This Row],[Kode Akun Buku Besar]],Lainnya[Tanggal Pengajuan Permintaan Cek],\">=\"&DATEVALUE(\" 1 \"&RingkasanPengeluaranBulanan[[#Headers],[Desember]]&_TAHUN),Lainnya[Tanggal Pengajuan Permintaan Cek],\"<=\"&O$4)","v":{"v":0,"d":"Rp0.00"}},{"$f":"SUM(RingkasanPengeluaranBulanan[[#This Row],[Januari]:[Desember]])","v":{"v":0,"d":"Rp0.00"}}]
[null,8000,"Asuransi Medis",{"$f":"SUMIFS(DetailPengeluaran[Jumlah Cek],DetailPengeluaran[Kode Akun Buku Besar],RingkasanPengeluaranBulanan[[#This Row],[Kode Akun Buku Besar]],DetailPengeluaran[Tanggal Faktur],\">=\"&D$3,DetailPengeluaran[Tanggal Faktur],\"<=\"&D$4)+SUMIFS(Lainnya[Jumlah Cek],Lainnya[Kode Akun Buku Besar],RingkasanPengeluaranBulanan[[#This Row],[Kode Akun Buku Besar]],Lainnya[Tanggal Pengajuan Permintaan Cek],\">=\"&DATEVALUE(\" 1 \"&RingkasanPengeluaranBulanan[[#Headers],[Januari]]&_TAHUN),Lainnya[Tanggal Pengajuan Permintaan Cek],\"<=\"&D$4)","v":{"v":0,"d":"Rp0.00"}},{"$f":"SUMIFS(DetailPengeluaran[Jumlah Cek],DetailPengeluaran[Kode Akun Buku Besar],RingkasanPengeluaranBulanan[[#This Row],[Kode Akun Buku Besar]],DetailPengeluaran[Tanggal Faktur],\">=\"&E$3,DetailPengeluaran[Tanggal Faktur],\"<=\"&E$4)+SUMIFS(Lainnya[Jumlah Cek],Lainnya[Kode Akun Buku Besar],RingkasanPengeluaranBulanan[[#This Row],[Kode Akun Buku Besar]],Lainnya[Tanggal Pengajuan Permintaan Cek],\">=\"&DATEVALUE(\" 1 \"&RingkasanPengeluaranBulanan[[#Headers],[Februari]]&_TAHUN),Lainnya[Tanggal Pengajuan Permintaan Cek],\"<=\"&E$4)","v":{"v":0,"d":"Rp0.00"}},{"$f":"SUMIFS(DetailPengeluaran[Jumlah Cek],DetailPengeluaran[Kode Akun Buku Besar],RingkasanPengeluaranBulanan[[#This Row],[Kode Akun Buku Besar]],DetailPengeluaran[Tanggal Faktur],\">=\"&F$3,DetailPengeluaran[Tanggal Faktur],\"<=\"&F$4)+SUMIFS(Lainnya[Jumlah Cek],Lainnya[Kode Akun Buku Besar],RingkasanPengeluaranBulanan[[#This Row],[Kode Akun Buku Besar]],Lainnya[Tanggal Pengajuan Permintaan Cek],\">=\"&DATEVALUE(\" 1 \"&RingkasanPengeluaranBulanan[[#Headers],[Maret]]&_TAHUN),Lainnya[Tanggal Pengajuan Permintaan Cek],\"<=\"&F$4)","v":{"v":0,"d":"Rp0.00"}},{"$f":"SUMIFS(DetailPengeluaran[Jumlah Cek],DetailPengeluaran[Kode Akun Buku Besar],RingkasanPengeluaranBulanan[[#This Row],[Kode Akun Buku Besar]],DetailPengeluaran[Tanggal Faktur],\">=\"&G$3,DetailPengeluaran[Tanggal Faktur],\"<=\"&G$4)+SUMIFS(Lainnya[Jumlah Cek],Lainnya[Kode Akun Buku Besar],RingkasanPengeluaranBulanan[[#This Row],[Kode Akun Buku Besar]],Lainnya[Tanggal Pengajuan Permintaan Cek],\">=\"&DATEVALUE(\" 1 \"&RingkasanPengeluaranBulanan[[#Headers],[April]]&_TAHUN),Lainnya[Tanggal Pengajuan Permintaan Cek],\"<=\"&G$4)","v":{"v":0,"d":"Rp0.00"}},{"$f":"SUMIFS(DetailPengeluaran[Jumlah Cek],DetailPengeluaran[Kode Akun Buku Besar],RingkasanPengeluaranBulanan[[#This Row],[Kode Akun Buku Besar]],DetailPengeluaran[Tanggal Faktur],\">=\"&H$3,DetailPengeluaran[Tanggal Faktur],\"<=\"&H$4)+SUMIFS(Lainnya[Jumlah Cek],Lainnya[Kode Akun Buku Besar],RingkasanPengeluaranBulanan[[#This Row],[Kode Akun Buku Besar]],Lainnya[Tanggal Pengajuan Permintaan Cek],\">=\"&DATEVALUE(\" 1 \"&RingkasanPengeluaranBulanan[[#Headers],[Mei]]&_TAHUN),Lainnya[Tanggal Pengajuan Permintaan Cek],\"<=\"&H$4)","v":{"v":0,"d":"Rp0.00"}},{"$f":"SUMIFS(DetailPengeluaran[Jumlah Cek],DetailPengeluaran[Kode Akun Buku Besar],RingkasanPengeluaranBulanan[[#This Row],[Kode Akun Buku Besar]],DetailPengeluaran[Tanggal Faktur],\">=\"&I$3,DetailPengeluaran[Tanggal Faktur],\"<=\"&I$4)+SUMIFS(Lainnya[Jumlah Cek],Lainnya[Kode Akun Buku Besar],RingkasanPengeluaranBulanan[[#This Row],[Kode Akun Buku Besar]],Lainnya[Tanggal Pengajuan Permintaan Cek],\">=\"&DATEVALUE(\" 1 \"&RingkasanPengeluaranBulanan[[#Headers],[Juni]]&_TAHUN),Lainnya[Tanggal Pengajuan Permintaan Cek],\"<=\"&I$4)","v":{"v":0,"d":"Rp0.00"}},{"$f":"SUMIFS(DetailPengeluaran[Jumlah Cek],DetailPengeluaran[Kode Akun Buku Besar],RingkasanPengeluaranBulanan[[#This Row],[Kode Akun Buku Besar]],DetailPengeluaran[Tanggal Faktur],\">=\"&J$3,DetailPengeluaran[Tanggal Faktur],\"<=\"&J$4)+SUMIFS(Lainnya[Jumlah Cek],Lainnya[Kode Akun Buku Besar],RingkasanPengeluaranBulanan[[#This Row],[Kode Akun Buku Besar]],Lainnya[Tanggal Pengajuan Permintaan Cek],\">=\"&DATEVALUE(\" 1 \"&RingkasanPengeluaranBulanan[[#Headers],[Juli]]&_TAHUN),Lainnya[Tanggal Pengajuan Permintaan Cek],\"<=\"&J$4)","v":{"v":0,"d":"Rp0.00"}},{"$f":"SUMIFS(DetailPengeluaran[Jumlah Cek],DetailPengeluaran[Kode Akun Buku Besar],RingkasanPengeluaranBulanan[[#This Row],[Kode Akun Buku Besar]],DetailPengeluaran[Tanggal Faktur],\">=\"&K$3,DetailPengeluaran[Tanggal Faktur],\"<=\"&K$4)+SUMIFS(Lainnya[Jumlah Cek],Lainnya[Kode Akun Buku Besar],RingkasanPengeluaranBulanan[[#This Row],[Kode Akun Buku Besar]],Lainnya[Tanggal Pengajuan Permintaan Cek],\">=\"&DATEVALUE(\" 1 \"&RingkasanPengeluaranBulanan[[#Headers],[Agustus]]&_TAHUN),Lainnya[Tanggal Pengajuan Permintaan Cek],\"<=\"&K$4)","v":{"v":0,"d":"Rp0.00"}},{"$f":"SUMIFS(DetailPengeluaran[Jumlah Cek],DetailPengeluaran[Kode Akun Buku Besar],RingkasanPengeluaranBulanan[[#This Row],[Kode Akun Buku Besar]],DetailPengeluaran[Tanggal Faktur],\">=\"&L$3,DetailPengeluaran[Tanggal Faktur],\"<=\"&L$4)+SUMIFS(Lainnya[Jumlah Cek],Lainnya[Kode Akun Buku Besar],RingkasanPengeluaranBulanan[[#This Row],[Kode Akun Buku Besar]],Lainnya[Tanggal Pengajuan Permintaan Cek],\">=\"&DATEVALUE(\" 1 \"&RingkasanPengeluaranBulanan[[#Headers],[September]]&_TAHUN),Lainnya[Tanggal Pengajuan Permintaan Cek],\"<=\"&L$4)","v":{"v":0,"d":"Rp0.00"}},{"$f":"SUMIFS(DetailPengeluaran[Jumlah Cek],DetailPengeluaran[Kode Akun Buku Besar],RingkasanPengeluaranBulanan[[#This Row],[Kode Akun Buku Besar]],DetailPengeluaran[Tanggal Faktur],\">=\"&M$3,DetailPengeluaran[Tanggal Faktur],\"<=\"&M$4)+SUMIFS(Lainnya[Jumlah Cek],Lainnya[Kode Akun Buku Besar],RingkasanPengeluaranBulanan[[#This Row],[Kode Akun Buku Besar]],Lainnya[Tanggal Pengajuan Permintaan Cek],\">=\"&DATEVALUE(\" 1 \"&RingkasanPengeluaranBulanan[[#Headers],[Oktober]]&_TAHUN),Lainnya[Tanggal Pengajuan Permintaan Cek],\"<=\"&M$4)","v":{"v":0,"d":"Rp0.00"}},{"$f":"SUMIFS(DetailPengeluaran[Jumlah Cek],DetailPengeluaran[Kode Akun Buku Besar],RingkasanPengeluaranBulanan[[#This Row],[Kode Akun Buku Besar]],DetailPengeluaran[Tanggal Faktur],\">=\"&N$3,DetailPengeluaran[Tanggal Faktur],\"<=\"&N$4)+SUMIFS(Lainnya[Jumlah Cek],Lainnya[Kode Akun Buku Besar],RingkasanPengeluaranBulanan[[#This Row],[Kode Akun Buku Besar]],Lainnya[Tanggal Pengajuan Permintaan Cek],\">=\"&DATEVALUE(\" 1 \"&RingkasanPengeluaranBulanan[[#Headers],[November]]&_TAHUN),Lainnya[Tanggal Pengajuan Permintaan Cek],\"<=\"&N$4)","v":{"v":0,"d":"Rp0.00"}},{"$f":"SUMIFS(DetailPengeluaran[Jumlah Cek],DetailPengeluaran[Kode Akun Buku Besar],RingkasanPengeluaranBulanan[[#This Row],[Kode Akun Buku Besar]],DetailPengeluaran[Tanggal Faktur],\">=\"&O$3,DetailPengeluaran[Tanggal Faktur],\"<=\"&O$4)+SUMIFS(Lainnya[Jumlah Cek],Lainnya[Kode Akun Buku Besar],RingkasanPengeluaranBulanan[[#This Row],[Kode Akun Buku Besar]],Lainnya[Tanggal Pengajuan Permintaan Cek],\">=\"&DATEVALUE(\" 1 \"&RingkasanPengeluaranBulanan[[#Headers],[Desember]]&_TAHUN),Lainnya[Tanggal Pengajuan Permintaan Cek],\"<=\"&O$4)","v":{"v":0,"d":"Rp0.00"}},{"$f":"SUM(RingkasanPengeluaranBulanan[[#This Row],[Januari]:[Desember]])","v":{"v":0,"d":"Rp0.00"}}]
[null,9000,"Biaya Gedung",{"$f":"SUMIFS(DetailPengeluaran[Jumlah Cek],DetailPengeluaran[Kode Akun Buku Besar],RingkasanPengeluaranBulanan[[#This Row],[Kode Akun Buku Besar]],DetailPengeluaran[Tanggal Faktur],\">=\"&D$3,DetailPengeluaran[Tanggal Faktur],\"<=\"&D$4)+SUMIFS(Lainnya[Jumlah Cek],Lainnya[Kode Akun Buku Besar],RingkasanPengeluaranBulanan[[#This Row],[Kode Akun Buku Besar]],Lainnya[Tanggal Pengajuan Permintaan Cek],\">=\"&DATEVALUE(\" 1 \"&RingkasanPengeluaranBulanan[[#Headers],[Januari]]&_TAHUN),Lainnya[Tanggal Pengajuan Permintaan Cek],\"<=\"&D$4)","v":{"v":0,"d":"Rp0.00"}},{"$f":"SUMIFS(DetailPengeluaran[Jumlah Cek],DetailPengeluaran[Kode Akun Buku Besar],RingkasanPengeluaranBulanan[[#This Row],[Kode Akun Buku Besar]],DetailPengeluaran[Tanggal Faktur],\">=\"&E$3,DetailPengeluaran[Tanggal Faktur],\"<=\"&E$4)+SUMIFS(Lainnya[Jumlah Cek],Lainnya[Kode Akun Buku Besar],RingkasanPengeluaranBulanan[[#This Row],[Kode Akun Buku Besar]],Lainnya[Tanggal Pengajuan Permintaan Cek],\">=\"&DATEVALUE(\" 1 \"&RingkasanPengeluaranBulanan[[#Headers],[Februari]]&_TAHUN),Lainnya[Tanggal Pengajuan Permintaan Cek],\"<=\"&E$4)","v":{"v":0,"d":"Rp0.00"}},{"$f":"SUMIFS(DetailPengeluaran[Jumlah Cek],DetailPengeluaran[Kode Akun Buku Besar],RingkasanPengeluaranBulanan[[#This Row],[Kode Akun Buku Besar]],DetailPengeluaran[Tanggal Faktur],\">=\"&F$3,DetailPengeluaran[Tanggal Faktur],\"<=\"&F$4)+SUMIFS(Lainnya[Jumlah Cek],Lainnya[Kode Akun Buku Besar],RingkasanPengeluaranBulanan[[#This Row],[Kode Akun Buku Besar]],Lainnya[Tanggal Pengajuan Permintaan Cek],\">=\"&DATEVALUE(\" 1 \"&RingkasanPengeluaranBulanan[[#Headers],[Maret]]&_TAHUN),Lainnya[Tanggal Pengajuan Permintaan Cek],\"<=\"&F$4)","v":{"v":0,"d":"Rp0.00"}},{"$f":"SUMIFS(DetailPengeluaran[Jumlah Cek],DetailPengeluaran[Kode Akun Buku Besar],RingkasanPengeluaranBulanan[[#This Row],[Kode Akun Buku Besar]],DetailPengeluaran[Tanggal Faktur],\">=\"&G$3,DetailPengeluaran[Tanggal Faktur],\"<=\"&G$4)+SUMIFS(Lainnya[Jumlah Cek],Lainnya[Kode Akun Buku Besar],RingkasanPengeluaranBulanan[[#This Row],[Kode Akun Buku Besar]],Lainnya[Tanggal Pengajuan Permintaan Cek],\">=\"&DATEVALUE(\" 1 \"&RingkasanPengeluaranBulanan[[#Headers],[April]]&_TAHUN),Lainnya[Tanggal Pengajuan Permintaan Cek],\"<=\"&G$4)","v":{"v":0,"d":"Rp0.00"}},{"$f":"SUMIFS(DetailPengeluaran[Jumlah Cek],DetailPengeluaran[Kode Akun Buku Besar],RingkasanPengeluaranBulanan[[#This Row],[Kode Akun Buku Besar]],DetailPengeluaran[Tanggal Faktur],\">=\"&H$3,DetailPengeluaran[Tanggal Faktur],\"<=\"&H$4)+SUMIFS(Lainnya[Jumlah Cek],Lainnya[Kode Akun Buku Besar],RingkasanPengeluaranBulanan[[#This Row],[Kode Akun Buku Besar]],Lainnya[Tanggal Pengajuan Permintaan Cek],\">=\"&DATEVALUE(\" 1 \"&RingkasanPengeluaranBulanan[[#Headers],[Mei]]&_TAHUN),Lainnya[Tanggal Pengajuan Permintaan Cek],\"<=\"&H$4)","v":{"v":0,"d":"Rp0.00"}},{"$f":"SUMIFS(DetailPengeluaran[Jumlah Cek],DetailPengeluaran[Kode Akun Buku Besar],RingkasanPengeluaranBulanan[[#This Row],[Kode Akun Buku Besar]],DetailPengeluaran[Tanggal Faktur],\">=\"&I$3,DetailPengeluaran[Tanggal Faktur],\"<=\"&I$4)+SUMIFS(Lainnya[Jumlah Cek],Lainnya[Kode Akun Buku Besar],RingkasanPengeluaranBulanan[[#This Row],[Kode Akun Buku Besar]],Lainnya[Tanggal Pengajuan Permintaan Cek],\">=\"&DATEVALUE(\" 1 \"&RingkasanPengeluaranBulanan[[#Headers],[Juni]]&_TAHUN),Lainnya[Tanggal Pengajuan Permintaan Cek],\"<=\"&I$4)","v":{"v":0,"d":"Rp0.00"}},{"$f":"SUMIFS(DetailPengeluaran[Jumlah Cek],DetailPengeluaran[Kode Akun Buku Besar],RingkasanPengeluaranBulanan[[#This Row],[Kode Akun Buku Besar]],DetailPengeluaran[Tanggal Faktur],\">=\"&J$3,DetailPengeluaran[Tanggal Faktur],\"<=\"&J$4)+SUMIFS(Lainnya[Jumlah Cek],Lainnya[Kode Akun Buku Besar],RingkasanPengeluaranBulanan[[#This Row],[Kode Akun Buku Besar]],Lainnya[Tanggal Pengajuan Permintaan Cek],\">=\"&DATEVALUE(\" 1 \"&RingkasanPengeluaranBulanan[[#Headers],[Juli]]&_TAHUN),Lainnya[Tanggal Pengajuan Permintaan Cek],\"<=\"&J$4)","v":{"v":0,"d":"Rp0.00"}},{"$f":"SUMIFS(DetailPengeluaran[Jumlah Cek],DetailPengeluaran[Kode Akun Buku Besar],RingkasanPengeluaranBulanan[[#This Row],[Kode Akun Buku Besar]],DetailPengeluaran[Tanggal Faktur],\">=\"&K$3,DetailPengeluaran[Tanggal Faktur],\"<=\"&K$4)+SUMIFS(Lainnya[Jumlah Cek],Lainnya[Kode Akun Buku Besar],RingkasanPengeluaranBulanan[[#This Row],[Kode Akun Buku Besar]],Lainnya[Tanggal Pengajuan Permintaan Cek],\">=\"&DATEVALUE(\" 1 \"&RingkasanPengeluaranBulanan[[#Headers],[Agustus]]&_TAHUN),Lainnya[Tanggal Pengajuan Permintaan Cek],\"<=\"&K$4)","v":{"v":0,"d":"Rp0.00"}},{"$f":"SUMIFS(DetailPengeluaran[Jumlah Cek],DetailPengeluaran[Kode Akun Buku Besar],RingkasanPengeluaranBulanan[[#This Row],[Kode Akun Buku Besar]],DetailPengeluaran[Tanggal Faktur],\">=\"&L$3,DetailPengeluaran[Tanggal Faktur],\"<=\"&L$4)+SUMIFS(Lainnya[Jumlah Cek],Lainnya[Kode Akun Buku Besar],RingkasanPengeluaranBulanan[[#This Row],[Kode Akun Buku Besar]],Lainnya[Tanggal Pengajuan Permintaan Cek],\">=\"&DATEVALUE(\" 1 \"&RingkasanPengeluaranBulanan[[#Headers],[September]]&_TAHUN),Lainnya[Tanggal Pengajuan Permintaan Cek],\"<=\"&L$4)","v":{"v":0,"d":"Rp0.00"}},{"$f":"SUMIFS(DetailPengeluaran[Jumlah Cek],DetailPengeluaran[Kode Akun Buku Besar],RingkasanPengeluaranBulanan[[#This Row],[Kode Akun Buku Besar]],DetailPengeluaran[Tanggal Faktur],\">=\"&M$3,DetailPengeluaran[Tanggal Faktur],\"<=\"&M$4)+SUMIFS(Lainnya[Jumlah Cek],Lainnya[Kode Akun Buku Besar],RingkasanPengeluaranBulanan[[#This Row],[Kode Akun Buku Besar]],Lainnya[Tanggal Pengajuan Permintaan Cek],\">=\"&DATEVALUE(\" 1 \"&RingkasanPengeluaranBulanan[[#Headers],[Oktober]]&_TAHUN),Lainnya[Tanggal Pengajuan Permintaan Cek],\"<=\"&M$4)","v":{"v":0,"d":"Rp0.00"}},{"$f":"SUMIFS(DetailPengeluaran[Jumlah Cek],DetailPengeluaran[Kode Akun Buku Besar],RingkasanPengeluaranBulanan[[#This Row],[Kode Akun Buku Besar]],DetailPengeluaran[Tanggal Faktur],\">=\"&N$3,DetailPengeluaran[Tanggal Faktur],\"<=\"&N$4)+SUMIFS(Lainnya[Jumlah Cek],Lainnya[Kode Akun Buku Besar],RingkasanPengeluaranBulanan[[#This Row],[Kode Akun Buku Besar]],Lainnya[Tanggal Pengajuan Permintaan Cek],\">=\"&DATEVALUE(\" 1 \"&RingkasanPengeluaranBulanan[[#Headers],[November]]&_TAHUN),Lainnya[Tanggal Pengajuan Permintaan Cek],\"<=\"&N$4)","v":{"v":0,"d":"Rp0.00"}},{"$f":"SUMIFS(DetailPengeluaran[Jumlah Cek],DetailPengeluaran[Kode Akun Buku Besar],RingkasanPengeluaranBulanan[[#This Row],[Kode Akun Buku Besar]],DetailPengeluaran[Tanggal Faktur],\">=\"&O$3,DetailPengeluaran[Tanggal Faktur],\"<=\"&O$4)+SUMIFS(Lainnya[Jumlah Cek],Lainnya[Kode Akun Buku Besar],RingkasanPengeluaranBulanan[[#This Row],[Kode Akun Buku Besar]],Lainnya[Tanggal Pengajuan Permintaan Cek],\">=\"&DATEVALUE(\" 1 \"&RingkasanPengeluaranBulanan[[#Headers],[Desember]]&_TAHUN),Lainnya[Tanggal Pengajuan Permintaan Cek],\"<=\"&O$4)","v":{"v":0,"d":"Rp0.00"}},{"$f":"SUM(RingkasanPengeluaranBulanan[[#This Row],[Januari]:[Desember]])","v":{"v":0,"d":"Rp0.00"}}]
[null,10000,"Pemasaran",{"$f":"SUMIFS(DetailPengeluaran[Jumlah Cek],DetailPengeluaran[Kode Akun Buku Besar],RingkasanPengeluaranBulanan[[#This Row],[Kode Akun Buku Besar]],DetailPengeluaran[Tanggal Faktur],\">=\"&D$3,DetailPengeluaran[Tanggal Faktur],\"<=\"&D$4)+SUMIFS(Lainnya[Jumlah Cek],Lainnya[Kode Akun Buku Besar],RingkasanPengeluaranBulanan[[#This Row],[Kode Akun Buku Besar]],Lainnya[Tanggal Pengajuan Permintaan Cek],\">=\"&DATEVALUE(\" 1 \"&RingkasanPengeluaranBulanan[[#Headers],[Januari]]&_TAHUN),Lainnya[Tanggal Pengajuan Permintaan Cek],\"<=\"&D$4)","v":{"v":0,"d":"Rp0.00"}},{"$f":"SUMIFS(DetailPengeluaran[Jumlah Cek],DetailPengeluaran[Kode Akun Buku Besar],RingkasanPengeluaranBulanan[[#This Row],[Kode Akun Buku Besar]],DetailPengeluaran[Tanggal Faktur],\">=\"&E$3,DetailPengeluaran[Tanggal Faktur],\"<=\"&E$4)+SUMIFS(Lainnya[Jumlah Cek],Lainnya[Kode Akun Buku Besar],RingkasanPengeluaranBulanan[[#This Row],[Kode Akun Buku Besar]],Lainnya[Tanggal Pengajuan Permintaan Cek],\">=\"&DATEVALUE(\" 1 \"&RingkasanPengeluaranBulanan[[#Headers],[Februari]]&_TAHUN),Lainnya[Tanggal Pengajuan Permintaan Cek],\"<=\"&E$4)","v":{"v":0,"d":"Rp0.00"}},{"$f":"SUMIFS(DetailPengeluaran[Jumlah Cek],DetailPengeluaran[Kode Akun Buku Besar],RingkasanPengeluaranBulanan[[#This Row],[Kode Akun Buku Besar]],DetailPengeluaran[Tanggal Faktur],\">=\"&F$3,DetailPengeluaran[Tanggal Faktur],\"<=\"&F$4)+SUMIFS(Lainnya[Jumlah Cek],Lainnya[Kode Akun Buku Besar],RingkasanPengeluaranBulanan[[#This Row],[Kode Akun Buku Besar]],Lainnya[Tanggal Pengajuan Permintaan Cek],\">=\"&DATEVALUE(\" 1 \"&RingkasanPengeluaranBulanan[[#Headers],[Maret]]&_TAHUN),Lainnya[Tanggal Pengajuan Permintaan Cek],\"<=\"&F$4)","v":{"v":0,"d":"Rp0.00"}},{"$f":"SUMIFS(DetailPengeluaran[Jumlah Cek],DetailPengeluaran[Kode Akun Buku Besar],RingkasanPengeluaranBulanan[[#This Row],[Kode Akun Buku Besar]],DetailPengeluaran[Tanggal Faktur],\">=\"&G$3,DetailPengeluaran[Tanggal Faktur],\"<=\"&G$4)+SUMIFS(Lainnya[Jumlah Cek],Lainnya[Kode Akun Buku Besar],RingkasanPengeluaranBulanan[[#This Row],[Kode Akun Buku Besar]],Lainnya[Tanggal Pengajuan Permintaan Cek],\">=\"&DATEVALUE(\" 1 \"&RingkasanPengeluaranBulanan[[#Headers],[April]]&_TAHUN),Lainnya[Tanggal Pengajuan Permintaan Cek],\"<=\"&G$4)","v":{"v":0,"d":"Rp0.00"}},{"$f":"SUMIFS(DetailPengeluaran[Jumlah Cek],DetailPengeluaran[Kode Akun Buku Besar],RingkasanPengeluaranBulanan[[#This Row],[Kode Akun Buku Besar]],DetailPengeluaran[Tanggal Faktur],\">=\"&H$3,DetailPengeluaran[Tanggal Faktur],\"<=\"&H$4)+SUMIFS(Lainnya[Jumlah Cek],Lainnya[Kode Akun Buku Besar],RingkasanPengeluaranBulanan[[#This Row],[Kode Akun Buku Besar]],Lainnya[Tanggal Pengajuan Permintaan Cek],\">=\"&DATEVALUE(\" 1 \"&RingkasanPengeluaranBulanan[[#Headers],[Mei]]&_TAHUN),Lainnya[Tanggal Pengajuan Permintaan Cek],\"<=\"&H$4)","v":{"v":0,"d":"Rp0.00"}},{"$f":"SUMIFS(DetailPengeluaran[Jumlah Cek],DetailPengeluaran[Kode Akun Buku Besar],RingkasanPengeluaranBulanan[[#This Row],[Kode Akun Buku Besar]],DetailPengeluaran[Tanggal Faktur],\">=\"&I$3,DetailPengeluaran[Tanggal Faktur],\"<=\"&I$4)+SUMIFS(Lainnya[Jumlah Cek],Lainnya[Kode Akun Buku Besar],RingkasanPengeluaranBulanan[[#This Row],[Kode Akun Buku Besar]],Lainnya[Tanggal Pengajuan Permintaan Cek],\">=\"&DATEVALUE(\" 1 \"&RingkasanPengeluaranBulanan[[#Headers],[Juni]]&_TAHUN),Lainnya[Tanggal Pengajuan Permintaan Cek],\"<=\"&I$4)","v":{"v":0,"d":"Rp0.00"}},{"$f":"SUMIFS(DetailPengeluaran[Jumlah Cek],DetailPengeluaran[Kode Akun Buku Besar],RingkasanPengeluaranBulanan[[#This Row],[Kode Akun Buku Besar]],DetailPengeluaran[Tanggal Faktur],\">=\"&J$3,DetailPengeluaran[Tanggal Faktur],\"<=\"&J$4)+SUMIFS(Lainnya[Jumlah Cek],Lainnya[Kode Akun Buku Besar],RingkasanPengeluaranBulanan[[#This Row],[Kode Akun Buku Besar]],Lainnya[Tanggal Pengajuan Permintaan Cek],\">=\"&DATEVALUE(\" 1 \"&RingkasanPengeluaranBulanan[[#Headers],[Juli]]&_TAHUN),Lainnya[Tanggal Pengajuan Permintaan Cek],\"<=\"&J$4)","v":{"v":0,"d":"Rp0.00"}},{"$f":"SUMIFS(DetailPengeluaran[Jumlah Cek],DetailPengeluaran[Kode Akun Buku Besar],RingkasanPengeluaranBulanan[[#This Row],[Kode Akun Buku Besar]],DetailPengeluaran[Tanggal Faktur],\">=\"&K$3,DetailPengeluaran[Tanggal Faktur],\"<=\"&K$4)+SUMIFS(Lainnya[Jumlah Cek],Lainnya[Kode Akun Buku Besar],RingkasanPengeluaranBulanan[[#This Row],[Kode Akun Buku Besar]],Lainnya[Tanggal Pengajuan Permintaan Cek],\">=\"&DATEVALUE(\" 1 \"&RingkasanPengeluaranBulanan[[#Headers],[Agustus]]&_TAHUN),Lainnya[Tanggal Pengajuan Permintaan Cek],\"<=\"&K$4)","v":{"v":0,"d":"Rp0.00"}},{"$f":"SUMIFS(DetailPengeluaran[Jumlah Cek],DetailPengeluaran[Kode Akun Buku Besar],RingkasanPengeluaranBulanan[[#This Row],[Kode Akun Buku Besar]],DetailPengeluaran[Tanggal Faktur],\">=\"&L$3,DetailPengeluaran[Tanggal Faktur],\"<=\"&L$4)+SUMIFS(Lainnya[Jumlah Cek],Lainnya[Kode Akun Buku Besar],RingkasanPengeluaranBulanan[[#This Row],[Kode Akun Buku Besar]],Lainnya[Tanggal Pengajuan Permintaan Cek],\">=\"&DATEVALUE(\" 1 \"&RingkasanPengeluaranBulanan[[#Headers],[September]]&_TAHUN),Lainnya[Tanggal Pengajuan Permintaan Cek],\"<=\"&L$4)","v":{"v":0,"d":"Rp0.00"}},{"$f":"SUMIFS(DetailPengeluaran[Jumlah Cek],DetailPengeluaran[Kode Akun Buku Besar],RingkasanPengeluaranBulanan[[#This Row],[Kode Akun Buku Besar]],DetailPengeluaran[Tanggal Faktur],\">=\"&M$3,DetailPengeluaran[Tanggal Faktur],\"<=\"&M$4)+SUMIFS(Lainnya[Jumlah Cek],Lainnya[Kode Akun Buku Besar],RingkasanPengeluaranBulanan[[#This Row],[Kode Akun Buku Besar]],Lainnya[Tanggal Pengajuan Permintaan Cek],\">=\"&DATEVALUE(\" 1 \"&RingkasanPengeluaranBulanan[[#Headers],[Oktober]]&_TAHUN),Lainnya[Tanggal Pengajuan Permintaan Cek],\"<=\"&M$4)","v":{"v":0,"d":"Rp0.00"}},{"$f":"SUMIFS(DetailPengeluaran[Jumlah Cek],DetailPengeluaran[Kode Akun Buku Besar],RingkasanPengeluaranBulanan[[#This Row],[Kode Akun Buku Besar]],DetailPengeluaran[Tanggal Faktur],\">=\"&N$3,DetailPengeluaran[Tanggal Faktur],\"<=\"&N$4)+SUMIFS(Lainnya[Jumlah Cek],Lainnya[Kode Akun Buku Besar],RingkasanPengeluaranBulanan[[#This Row],[Kode Akun Buku Besar]],Lainnya[Tanggal Pengajuan Permintaan Cek],\">=\"&DATEVALUE(\" 1 \"&RingkasanPengeluaranBulanan[[#Headers],[November]]&_TAHUN),Lainnya[Tanggal Pengajuan Permintaan Cek],\"<=\"&N$4)","v":{"v":0,"d":"Rp0.00"}},{"$f":"SUMIFS(DetailPengeluaran[Jumlah Cek],DetailPengeluaran[Kode Akun Buku Besar],RingkasanPengeluaranBulanan[[#This Row],[Kode Akun Buku Besar]],DetailPengeluaran[Tanggal Faktur],\">=\"&O$3,DetailPengeluaran[Tanggal Faktur],\"<=\"&O$4)+SUMIFS(Lainnya[Jumlah Cek],Lainnya[Kode Akun Buku Besar],RingkasanPengeluaranBulanan[[#This Row],[Kode Akun Buku Besar]],Lainnya[Tanggal Pengajuan Permintaan Cek],\">=\"&DATEVALUE(\" 1 \"&RingkasanPengeluaranBulanan[[#Headers],[Desember]]&_TAHUN),Lainnya[Tanggal Pengajuan Permintaan Cek],\"<=\"&O$4)","v":{"v":0,"d":"Rp0.00"}},{"$f":"SUM(RingkasanPengeluaranBulanan[[#This Row],[Januari]:[Desember]])","v":{"v":0,"d":"Rp0.00"}}]
[null,11000,"Amal",{"$f":"SUMIFS(DetailPengeluaran[Jumlah Cek],DetailPengeluaran[Kode Akun Buku Besar],RingkasanPengeluaranBulanan[[#This Row],[Kode Akun Buku Besar]],DetailPengeluaran[Tanggal Faktur],\">=\"&D$3,DetailPengeluaran[Tanggal Faktur],\"<=\"&D$4)+SUMIFS(Lainnya[Jumlah Cek],Lainnya[Kode Akun Buku Besar],RingkasanPengeluaranBulanan[[#This Row],[Kode Akun Buku Besar]],Lainnya[Tanggal Pengajuan Permintaan Cek],\">=\"&DATEVALUE(\" 1 \"&RingkasanPengeluaranBulanan[[#Headers],[Januari]]&_TAHUN),Lainnya[Tanggal Pengajuan Permintaan Cek],\"<=\"&D$4)","v":{"v":0,"d":"Rp0.00"}},{"$f":"SUMIFS(DetailPengeluaran[Jumlah Cek],DetailPengeluaran[Kode Akun Buku Besar],RingkasanPengeluaranBulanan[[#This Row],[Kode Akun Buku Besar]],DetailPengeluaran[Tanggal Faktur],\">=\"&E$3,DetailPengeluaran[Tanggal Faktur],\"<=\"&E$4)+SUMIFS(Lainnya[Jumlah Cek],Lainnya[Kode Akun Buku Besar],RingkasanPengeluaranBulanan[[#This Row],[Kode Akun Buku Besar]],Lainnya[Tanggal Pengajuan Permintaan Cek],\">=\"&DATEVALUE(\" 1 \"&RingkasanPengeluaranBulanan[[#Headers],[Februari]]&_TAHUN),Lainnya[Tanggal Pengajuan Permintaan Cek],\"<=\"&E$4)","v":{"v":0,"d":"Rp0.00"}},{"$f":"SUMIFS(DetailPengeluaran[Jumlah Cek],DetailPengeluaran[Kode Akun Buku Besar],RingkasanPengeluaranBulanan[[#This Row],[Kode Akun Buku Besar]],DetailPengeluaran[Tanggal Faktur],\">=\"&F$3,DetailPengeluaran[Tanggal Faktur],\"<=\"&F$4)+SUMIFS(Lainnya[Jumlah Cek],Lainnya[Kode Akun Buku Besar],RingkasanPengeluaranBulanan[[#This Row],[Kode Akun Buku Besar]],Lainnya[Tanggal Pengajuan Permintaan Cek],\">=\"&DATEVALUE(\" 1 \"&RingkasanPengeluaranBulanan[[#Headers],[Maret]]&_TAHUN),Lainnya[Tanggal Pengajuan Permintaan Cek],\"<=\"&F$4)","v":{"v":0,"d":"Rp0.00"}},{"$f":"SUMIFS(DetailPengeluaran[Jumlah Cek],DetailPengeluaran[Kode Akun Buku Besar],RingkasanPengeluaranBulanan[[#This Row],[Kode Akun Buku Besar]],DetailPengeluaran[Tanggal Faktur],\">=\"&G$3,DetailPengeluaran[Tanggal Faktur],\"<=\"&G$4)+SUMIFS(Lainnya[Jumlah Cek],Lainnya[Kode Akun Buku Besar],RingkasanPengeluaranBulanan[[#This Row],[Kode Akun Buku Besar]],Lainnya[Tanggal Pengajuan Permintaan Cek],\">=\"&DATEVALUE(\" 1 \"&RingkasanPengeluaranBulanan[[#Headers],[April]]&_TAHUN),Lainnya[Tanggal Pengajuan Permintaan Cek],\"<=\"&G$4)","v":{"v":0,"d":"Rp0.00"}},{"$f":"SUMIFS(DetailPengeluaran[Jumlah Cek],DetailPengeluaran[Kode Akun Buku Besar],RingkasanPengeluaranBulanan[[#This Row],[Kode Akun Buku Besar]],DetailPengeluaran[Tanggal Faktur],\">=\"&H$3,DetailPengeluaran[Tanggal Faktur],\"<=\"&H$4)+SUMIFS(Lainnya[Jumlah Cek],Lainnya[Kode Akun Buku Besar],RingkasanPengeluaranBulanan[[#This Row],[Kode Akun Buku Besar]],Lainnya[Tanggal Pengajuan Permintaan Cek],\">=\"&DATEVALUE(\" 1 \"&RingkasanPengeluaranBulanan[[#Headers],[Mei]]&_TAHUN),Lainnya[Tanggal Pengajuan Permintaan Cek],\"<=\"&H$4)","v":{"v":0,"d":"Rp0.00"}},{"$f":"SUMIFS(DetailPengeluaran[Jumlah Cek],DetailPengeluaran[Kode Akun Buku Besar],RingkasanPengeluaranBulanan[[#This Row],[Kode Akun Buku Besar]],DetailPengeluaran[Tanggal Faktur],\">=\"&I$3,DetailPengeluaran[Tanggal Faktur],\"<=\"&I$4)+SUMIFS(Lainnya[Jumlah Cek],Lainnya[Kode Akun Buku Besar],RingkasanPengeluaranBulanan[[#This Row],[Kode Akun Buku Besar]],Lainnya[Tanggal Pengajuan Permintaan Cek],\">=\"&DATEVALUE(\" 1 \"&RingkasanPengeluaranBulanan[[#Headers],[Juni]]&_TAHUN),Lainnya[Tanggal Pengajuan Permintaan Cek],\"<=\"&I$4)","v":{"v":0,"d":"Rp0.00"}},{"$f":"SUMIFS(DetailPengeluaran[Jumlah Cek],DetailPengeluaran[Kode Akun Buku Besar],RingkasanPengeluaranBulanan[[#This Row],[Kode Akun Buku Besar]],DetailPengeluaran[Tanggal Faktur],\">=\"&J$3,DetailPengeluaran[Tanggal Faktur],\"<=\"&J$4)+SUMIFS(Lainnya[Jumlah Cek],Lainnya[Kode Akun Buku Besar],RingkasanPengeluaranBulanan[[#This Row],[Kode Akun Buku Besar]],Lainnya[Tanggal Pengajuan Permintaan Cek],\">=\"&DATEVALUE(\" 1 \"&RingkasanPengeluaranBulanan[[#Headers],[Juli]]&_TAHUN),Lainnya[Tanggal Pengajuan Permintaan Cek],\"<=\"&J$4)","v":{"v":0,"d":"Rp0.00"}},{"$f":"SUMIFS(DetailPengeluaran[Jumlah Cek],DetailPengeluaran[Kode Akun Buku Besar],RingkasanPengeluaranBulanan[[#This Row],[Kode Akun Buku Besar]],DetailPengeluaran[Tanggal Faktur],\">=\"&K$3,DetailPengeluaran[Tanggal Faktur],\"<=\"&K$4)+SUMIFS(Lainnya[Jumlah Cek],Lainnya[Kode Akun Buku Besar],RingkasanPengeluaranBulanan[[#This Row],[Kode Akun Buku Besar]],Lainnya[Tanggal Pengajuan Permintaan Cek],\">=\"&DATEVALUE(\" 1 \"&RingkasanPengeluaranBulanan[[#Headers],[Agustus]]&_TAHUN),Lainnya[Tanggal Pengajuan Permintaan Cek],\"<=\"&K$4)","v":{"v":0,"d":"Rp0.00"}},{"$f":"SUMIFS(DetailPengeluaran[Jumlah Cek],DetailPengeluaran[Kode Akun Buku Besar],RingkasanPengeluaranBulanan[[#This Row],[Kode Akun Buku Besar]],DetailPengeluaran[Tanggal Faktur],\">=\"&L$3,DetailPengeluaran[Tanggal Faktur],\"<=\"&L$4)+SUMIFS(Lainnya[Jumlah Cek],Lainnya[Kode Akun Buku Besar],RingkasanPengeluaranBulanan[[#This Row],[Kode Akun Buku Besar]],Lainnya[Tanggal Pengajuan Permintaan Cek],\">=\"&DATEVALUE(\" 1 \"&RingkasanPengeluaranBulanan[[#Headers],[September]]&_TAHUN),Lainnya[Tanggal Pengajuan Permintaan Cek],\"<=\"&L$4)","v":{"v":0,"d":"Rp0.00"}},{"$f":"SUMIFS(DetailPengeluaran[Jumlah Cek],DetailPengeluaran[Kode Akun Buku Besar],RingkasanPengeluaranBulanan[[#This Row],[Kode Akun Buku Besar]],DetailPengeluaran[Tanggal Faktur],\">=\"&M$3,DetailPengeluaran[Tanggal Faktur],\"<=\"&M$4)+SUMIFS(Lainnya[Jumlah Cek],Lainnya[Kode Akun Buku Besar],RingkasanPengeluaranBulanan[[#This Row],[Kode Akun Buku Besar]],Lainnya[Tanggal Pengajuan Permintaan Cek],\">=\"&DATEVALUE(\" 1 \"&RingkasanPengeluaranBulanan[[#Headers],[Oktober]]&_TAHUN),Lainnya[Tanggal Pengajuan Permintaan Cek],\"<=\"&M$4)","v":{"v":0,"d":"Rp0.00"}},{"$f":"SUMIFS(DetailPengeluaran[Jumlah Cek],DetailPengeluaran[Kode Akun Buku Besar],RingkasanPengeluaranBulanan[[#This Row],[Kode Akun Buku Besar]],DetailPengeluaran[Tanggal Faktur],\">=\"&N$3,DetailPengeluaran[Tanggal Faktur],\"<=\"&N$4)+SUMIFS(Lainnya[Jumlah Cek],Lainnya[Kode Akun Buku Besar],RingkasanPengeluaranBulanan[[#This Row],[Kode Akun Buku Besar]],Lainnya[Tanggal Pengajuan Permintaan Cek],\">=\"&DATEVALUE(\" 1 \"&RingkasanPengeluaranBulanan[[#Headers],[November]]&_TAHUN),Lainnya[Tanggal Pengajuan Permintaan Cek],\"<=\"&N$4)","v":{"v":0,"d":"Rp0.00"}},{"$f":"SUMIFS(DetailPengeluaran[Jumlah Cek],DetailPengeluaran[Kode Akun Buku Besar],RingkasanPengeluaranBulanan[[#This Row],[Kode Akun Buku Besar]],DetailPengeluaran[Tanggal Faktur],\">=\"&O$3,DetailPengeluaran[Tanggal Faktur],\"<=\"&O$4)+SUMIFS(Lainnya[Jumlah Cek],Lainnya[Kode Akun Buku Besar],RingkasanPengeluaranBulanan[[#This Row],[Kode Akun Buku Besar]],Lainnya[Tanggal Pengajuan Permintaan Cek],\">=\"&DATEVALUE(\" 1 \"&RingkasanPengeluaranBulanan[[#Headers],[Desember]]&_TAHUN),Lainnya[Tanggal Pengajuan Permintaan Cek],\"<=\"&O$4)","v":{"v":0,"d":"Rp0.00"}},{"$f":"SUM(RingkasanPengeluaranBulanan[[#This Row],[Januari]:[Desember]])","v":{"v":0,"d":"Rp0.00"}}]
[null,12000,"Sponsor",{"$f":"SUMIFS(DetailPengeluaran[Jumlah Cek],DetailPengeluaran[Kode Akun Buku Besar],RingkasanPengeluaranBulanan[[#This Row],[Kode Akun Buku Besar]],DetailPengeluaran[Tanggal Faktur],\">=\"&D$3,DetailPengeluaran[Tanggal Faktur],\"<=\"&D$4)+SUMIFS(Lainnya[Jumlah Cek],Lainnya[Kode Akun Buku Besar],RingkasanPengeluaranBulanan[[#This Row],[Kode Akun Buku Besar]],Lainnya[Tanggal Pengajuan Permintaan Cek],\">=\"&DATEVALUE(\" 1 \"&RingkasanPengeluaranBulanan[[#Headers],[Januari]]&_TAHUN),Lainnya[Tanggal Pengajuan Permintaan Cek],\"<=\"&D$4)","v":{"v":0,"d":"Rp0.00"}},{"$f":"SUMIFS(DetailPengeluaran[Jumlah Cek],DetailPengeluaran[Kode Akun Buku Besar],RingkasanPengeluaranBulanan[[#This Row],[Kode Akun Buku Besar]],DetailPengeluaran[Tanggal Faktur],\">=\"&E$3,DetailPengeluaran[Tanggal Faktur],\"<=\"&E$4)+SUMIFS(Lainnya[Jumlah Cek],Lainnya[Kode Akun Buku Besar],RingkasanPengeluaranBulanan[[#This Row],[Kode Akun Buku Besar]],Lainnya[Tanggal Pengajuan Permintaan Cek],\">=\"&DATEVALUE(\" 1 \"&RingkasanPengeluaranBulanan[[#Headers],[Februari]]&_TAHUN),Lainnya[Tanggal Pengajuan Permintaan Cek],\"<=\"&E$4)","v":{"v":0,"d":"Rp0.00"}},{"$f":"SUMIFS(DetailPengeluaran[Jumlah Cek],DetailPengeluaran[Kode Akun Buku Besar],RingkasanPengeluaranBulanan[[#This Row],[Kode Akun Buku Besar]],DetailPengeluaran[Tanggal Faktur],\">=\"&F$3,DetailPengeluaran[Tanggal Faktur],\"<=\"&F$4)+SUMIFS(Lainnya[Jumlah Cek],Lainnya[Kode Akun Buku Besar],RingkasanPengeluaranBulanan[[#This Row],[Kode Akun Buku Besar]],Lainnya[Tanggal Pengajuan Permintaan Cek],\">=\"&DATEVALUE(\" 1 \"&RingkasanPengeluaranBulanan[[#Headers],[Maret]]&_TAHUN),Lainnya[Tanggal Pengajuan Permintaan Cek],\"<=\"&F$4)","v":{"v":0,"d":"Rp0.00"}},{"$f":"SUMIFS(DetailPengeluaran[Jumlah Cek],DetailPengeluaran[Kode Akun Buku Besar],RingkasanPengeluaranBulanan[[#This Row],[Kode Akun Buku Besar]],DetailPengeluaran[Tanggal Faktur],\">=\"&G$3,DetailPengeluaran[Tanggal Faktur],\"<=\"&G$4)+SUMIFS(Lainnya[Jumlah Cek],Lainnya[Kode Akun Buku Besar],RingkasanPengeluaranBulanan[[#This Row],[Kode Akun Buku Besar]],Lainnya[Tanggal Pengajuan Permintaan Cek],\">=\"&DATEVALUE(\" 1 \"&RingkasanPengeluaranBulanan[[#Headers],[April]]&_TAHUN),Lainnya[Tanggal Pengajuan Permintaan Cek],\"<=\"&G$4)","v":{"v":0,"d":"Rp0.00"}},{"$f":"SUMIFS(DetailPengeluaran[Jumlah Cek],DetailPengeluaran[Kode Akun Buku Besar],RingkasanPengeluaranBulanan[[#This Row],[Kode Akun Buku Besar]],DetailPengeluaran[Tanggal Faktur],\">=\"&H$3,DetailPengeluaran[Tanggal Faktur],\"<=\"&H$4)+SUMIFS(Lainnya[Jumlah Cek],Lainnya[Kode Akun Buku Besar],RingkasanPengeluaranBulanan[[#This Row],[Kode Akun Buku Besar]],Lainnya[Tanggal Pengajuan Permintaan Cek],\">=\"&DATEVALUE(\" 1 \"&RingkasanPengeluaranBulanan[[#Headers],[Mei]]&_TAHUN),Lainnya[Tanggal Pengajuan Permintaan Cek],\"<=\"&H$4)","v":{"v":0,"d":"Rp0.00"}},{"$f":"SUMIFS(DetailPengeluaran[Jumlah Cek],DetailPengeluaran[Kode Akun Buku Besar],RingkasanPengeluaranBulanan[[#This Row],[Kode Akun Buku Besar]],DetailPengeluaran[Tanggal Faktur],\">=\"&I$3,DetailPengeluaran[Tanggal Faktur],\"<=\"&I$4)+SUMIFS(Lainnya[Jumlah Cek],Lainnya[Kode Akun Buku Besar],RingkasanPengeluaranBulanan[[#This Row],[Kode Akun Buku Besar]],Lainnya[Tanggal Pengajuan Permintaan Cek],\">=\"&DATEVALUE(\" 1 \"&RingkasanPengeluaranBulanan[[#Headers],[Juni]]&_TAHUN),Lainnya[Tanggal Pengajuan Permintaan Cek],\"<=\"&I$4)","v":{"v":0,"d":"Rp0.00"}},{"$f":"SUMIFS(DetailPengeluaran[Jumlah Cek],DetailPengeluaran[Kode Akun Buku Besar],RingkasanPengeluaranBulanan[[#This Row],[Kode Akun Buku Besar]],DetailPengeluaran[Tanggal Faktur],\">=\"&J$3,DetailPengeluaran[Tanggal Faktur],\"<=\"&J$4)+SUMIFS(Lainnya[Jumlah Cek],Lainnya[Kode Akun Buku Besar],RingkasanPengeluaranBulanan[[#This Row],[Kode Akun Buku Besar]],Lainnya[Tanggal Pengajuan Permintaan Cek],\">=\"&DATEVALUE(\" 1 \"&RingkasanPengeluaranBulanan[[#Headers],[Juli]]&_TAHUN),Lainnya[Tanggal Pengajuan Permintaan Cek],\"<=\"&J$4)","v":{"v":0,"d":"Rp0.00"}},{"$f":"SUMIFS(DetailPengeluaran[Jumlah Cek],DetailPengeluaran[Kode Akun Buku Besar],RingkasanPengeluaranBulanan[[#This Row],[Kode Akun Buku Besar]],DetailPengeluaran[Tanggal Faktur],\">=\"&K$3,DetailPengeluaran[Tanggal Faktur],\"<=\"&K$4)+SUMIFS(Lainnya[Jumlah Cek],Lainnya[Kode Akun Buku Besar],RingkasanPengeluaranBulanan[[#This Row],[Kode Akun Buku Besar]],Lainnya[Tanggal Pengajuan Permintaan Cek],\">=\"&DATEVALUE(\" 1 \"&RingkasanPengeluaranBulanan[[#Headers],[Agustus]]&_TAHUN),Lainnya[Tanggal Pengajuan Permintaan Cek],\"<=\"&K$4)","v":{"v":0,"d":"Rp0.00"}},{"$f":"SUMIFS(DetailPengeluaran[Jumlah Cek],DetailPengeluaran[Kode Akun Buku Besar],RingkasanPengeluaranBulanan[[#This Row],[Kode Akun Buku Besar]],DetailPengeluaran[Tanggal Faktur],\">=\"&L$3,DetailPengeluaran[Tanggal Faktur],\"<=\"&L$4)+SUMIFS(Lainnya[Jumlah Cek],Lainnya[Kode Akun Buku Besar],RingkasanPengeluaranBulanan[[#This Row],[Kode Akun Buku Besar]],Lainnya[Tanggal Pengajuan Permintaan Cek],\">=\"&DATEVALUE(\" 1 \"&RingkasanPengeluaranBulanan[[#Headers],[September]]&_TAHUN),Lainnya[Tanggal Pengajuan Permintaan Cek],\"<=\"&L$4)","v":{"v":0,"d":"Rp0.00"}},{"$f":"SUMIFS(DetailPengeluaran[Jumlah Cek],DetailPengeluaran[Kode Akun Buku Besar],RingkasanPengeluaranBulanan[[#This Row],[Kode Akun Buku Besar]],DetailPengeluaran[Tanggal Faktur],\">=\"&M$3,DetailPengeluaran[Tanggal Faktur],\"<=\"&M$4)+SUMIFS(Lainnya[Jumlah Cek],Lainnya[Kode Akun Buku Besar],RingkasanPengeluaranBulanan[[#This Row],[Kode Akun Buku Besar]],Lainnya[Tanggal Pengajuan Permintaan Cek],\">=\"&DATEVALUE(\" 1 \"&RingkasanPengeluaranBulanan[[#Headers],[Oktober]]&_TAHUN),Lainnya[Tanggal Pengajuan Permintaan Cek],\"<=\"&M$4)","v":{"v":0,"d":"Rp0.00"}},{"$f":"SUMIFS(DetailPengeluaran[Jumlah Cek],DetailPengeluaran[Kode Akun Buku Besar],RingkasanPengeluaranBulanan[[#This Row],[Kode Akun Buku Besar]],DetailPengeluaran[Tanggal Faktur],\">=\"&N$3,DetailPengeluaran[Tanggal Faktur],\"<=\"&N$4)+SUMIFS(Lainnya[Jumlah Cek],Lainnya[Kode Akun Buku Besar],RingkasanPengeluaranBulanan[[#This Row],[Kode Akun Buku Besar]],Lainnya[Tanggal Pengajuan Permintaan Cek],\">=\"&DATEVALUE(\" 1 \"&RingkasanPengeluaranBulanan[[#Headers],[November]]&_TAHUN),Lainnya[Tanggal Pengajuan Permintaan Cek],\"<=\"&N$4)","v":{"v":0,"d":"Rp0.00"}},{"$f":"SUMIFS(DetailPengeluaran[Jumlah Cek],DetailPengeluaran[Kode Akun Buku Besar],RingkasanPengeluaranBulanan[[#This Row],[Kode Akun Buku Besar]],DetailPengeluaran[Tanggal Faktur],\">=\"&O$3,DetailPengeluaran[Tanggal Faktur],\"<=\"&O$4)+SUMIFS(Lainnya[Jumlah Cek],Lainnya[Kode Akun Buku Besar],RingkasanPengeluaranBulanan[[#This Row],[Kode Akun Buku Besar]],Lainnya[Tanggal Pengajuan Permintaan Cek],\">=\"&DATEVALUE(\" 1 \"&RingkasanPengeluaranBulanan[[#Headers],[Desember]]&_TAHUN),Lainnya[Tanggal Pengajuan Permintaan Cek],\"<=\"&O$4)","v":{"v":0,"d":"Rp0.00"}},{"$f":"SUM(RingkasanPengeluaranBulanan[[#This Row],[Januari]:[Desember]])","v":{"v":0,"d":"Rp0.00"}}]
[null,"Total",null,{"$f":"SUBTOTAL(109,RingkasanPengeluaranBulanan[Januari])","v":{"v":0,"d":"Rp0.00"}},{"$f":"SUBTOTAL(109,RingkasanPengeluaranBulanan[Februari])","v":{"v":0,"d":"Rp0.00"}},{"$f":"SUBTOTAL(109,RingkasanPengeluaranBulanan[Maret])","v":{"v":0,"d":"Rp0.00"}},{"$f":"SUBTOTAL(109,RingkasanPengeluaranBulanan[April])","v":{"v":0,"d":"Rp0.00"}},{"$f":"SUBTOTAL(109,RingkasanPengeluaranBulanan[Mei])","v":{"v":0,"d":"Rp0.00"}},{"$f":"SUBTOTAL(109,RingkasanPengeluaranBulanan[Juni])","v":{"v":0,"d":"Rp0.00"}},{"$f":"SUBTOTAL(109,RingkasanPengeluaranBulanan[Juli])","v":{"v":0,"d":"Rp0.00"}},{"$f":"SUBTOTAL(109,RingkasanPengeluaranBulanan[Agustus])","v":{"v":0,"d":"Rp0.00"}},{"$f":"SUBTOTAL(109,RingkasanPengeluaranBulanan[September])","v":{"v":0,"d":"Rp0.00"}},{"$f":"SUBTOTAL(109,RingkasanPengeluaranBulanan[Oktober])","v":{"v":0,"d":"Rp0.00"}},{"$f":"SUBTOTAL(109,RingkasanPengeluaranBulanan[November])","v":{"v":0,"d":"Rp0.00"}},{"$f":"SUBTOTAL(109,RingkasanPengeluaranBulanan[Desember])","v":{"v":0,"d":"Rp0.00"}},{"$f":"SUBTOTAL(109,RingkasanPengeluaranBulanan[Total])","v":{"v":0,"d":"Rp0.00"}}]

{"sheet":"DETAIL PENGELUARAN","index":2,"n_rows":6,"n_cols":10,"rows_kept":6,"merged":[[1,1,1,9],[2,1,2,5],[2,6,2,9]]}
[]
[null,"DETAIL PENGELUARAN"]
[]
[null,"Kode Akun Buku Besar","Tanggal Faktur","No. Faktur","Diminta oleh","Jumlah Cek","Penerima Pembayaran","Penggunaan Cek","Metode Distribusi","Tanggal Pencatatan"]
[null,1000,"Tanggal",100,"Aprilian Tobing",{"v":750.75,"d":"Rp750.75"},"Consolidated Messenger ","Pengirim email","Email","Tanggal"]
[null,7000,"Tanggal",101,"Rendi Wijaya",{"v":2500,"d":"Rp2,500.00"},"A. Datum Corporation ","2 komputer desktop","Kredit","Tanggal"]

{"sheet":"AMAL & SPONSOR","index":3,"n_rows":6,"n_cols":12,"rows_kept":6,"merged":[[1,1,1,11],[2,1,2,5],[2,6,2,11]]}
[]
[null,"AMAL & SPONSOR"]
[]
[null,"Kode Akun Buku Besar","Tanggal Pengajuan Permintaan Cek","Diminta oleh","Jumlah Cek","Kontribusi Tahun Sebelumnya","Penerima Pembayaran","Penggunaan","Ditandatangani oleh","Kategori","Metode Distribusi","Tanggal Pencatatan"]
[null,12000,"Tanggal","Susi W. Ersiana",{"v":1000,"d":"Rp1,000.00"},{"v":12,"d":"Rp12.00"},"Sekolah Kesenian ","Beasiswa","Kartini Rahmawati","Seni","Cek","Tanggal"]
[null,11000,"Tanggal","Susi W. Ersiana",{"v":2500,"d":"Rp2,500.00"},{"v":0,"d":"Rp0.00"},"Wingtip Toys ","Komunitas","Karina Fitriana","Komunitas","Cek","Tanggal"]